Workbook

Sheet SOFTWARE T-CON
A7: 1) Dati Generali: | H7: 4) Carichi agenti sulla struttura: | AC7: versione | AD7: 2.8.2
A9: Cliente/Cantiere: | H9: Peso permanente strutturale: | K9: G1,k =
A10: Identificativo solaio: | C10: C1 | K10: = | L10: 2.3 | M10: kN/m2
A11: Tecnico: | C11: Ufficio Tecnico | H11: Peso permanente non strutturale: | K11: G2,k = | L11: 2.5 | M11: kN/m2
A12: Normativa di riferimento: | H12: Carico concentrato (se presente): | K12: Pk = | L12: 0 | M12: kN
H13: Posizione rispetto appoggio sinistro: | K13: a = | L13: 3650 | M13: mm
A14: 2) Dimensioni del sistema: | H14: Tipologia di carico variabile:
A16: Luce netta: | D16: Lnetta = | E16: 4650 | F16: mm | H16: Carico variabile (vedere "NOTE"): | K16: Qk = | L16: 2 | M16: kN/m2
A17: Larghezza appoggi: | D17: Lappoggi = | E17: - | F17: mm | H17: Classe di durata del carico: | L17: (per info vedere foglio "NOTE")
A18: Larghezza vano: | D18: Lvano = | E18: - | F18: mm
A19: Interassi travi in legno: | D19: i = | E19: 650 | F19: mm | H19: 5) Inclinazione della struttura: | K19: pendenza = | M19: %
A20: Limite freccia istantanea: | D20: L/uiniziale = | E20: 400 | F20: -
A21: Limite freccia finale totale: | D21: L/ufinale = | E21: 300 | F21: - | H21: 6) Materiali:
A22: Classe di servizio della struttura: | E22: (per info vedere foglio "NOTE") | H22: Classe di resistenza legname:
H23: Classe di resistenza calcestruzzo:
A24: 3) Dimensioni sezione trasversale: | H24: Tipologia di strato interposto:
A25: Larghezza efficace della soletta: | D25: b1 = | E25: =MIN(E16/5+E28,E19) -> 650 | F25: mm | H25: Rete elettrosaldata: | J25: f
A26: Spessore della soletta: | D26: h1 = | E26: 60 | F26: mm | H26: Armatura aggiuntiva: | J26: nb | L26: f
A27: Spessore strato interposto (assito,…): | D27: tS = | E27: 20 | F27: mm
A28: Base della sezione lignea: | D28: b2 = | E28: 160 | F28: mm | H28: 7) Tipologia di connettore:
A29: Altezza della sezione lignea: | D29: h2 = | E29: 240 | F29: mm | H29: Inclinazione del connettore: | K29: a | M29: °
A30: Spessore isolante (eventuale): | D30: hiso = | E30: 0 | F30: mm | H30: Numero connettori in una sezione: | K30: nc = | L30: 1 | M30: -
A31: =IF(E30=0,"ATTENZIONE!! Se h_iso=0, h_1 >= 6cm!!","") -> ATTENZIONE!! Se h_iso=0, h_1 >= 6cm!! | H31: Passo minimo dei connettori: | K31: smin = | L31: 130 | M31: mm
H32: Passo massimo dei connettori: | K32: smax = | L32: 330 | M32: mm
A33: Il presente foglio non può essere modificato e/o distributo in alcun modo senza il consenso scritto di RoofRox Srl.
H36: =IF(E30=0,E26>=60,E26>=50) -> TRUE | J36: PER G1 | K36: =Prescrizioni!L88 -> 1
J37: per a | K37: =IF(L12=0,1,2) -> 1

Sheet Analisi
A7: CALCOLO E VERIFICA DI SOLAI MISTI LEGNO-CLS CON CONNETTORI T-CON
A9: Cantiere: | B9: ='SOFTWARE T-CON'!C9 -> 0 | H9: Posizione solaio: | J9: ='SOFTWARE T-CON'!C10 -> C1
A10: Data: | B10: =TODAY() -> 2018-12-21 | H10: Normativa di riferimento: | K10: =VLOOKUP(Prescrizioni!B7,Prescrizioni!B3:F6,2) -> D.M. 17.01.2018 - Colonna "A"
A11: GEOMETRIA DEL SOLAIO
A12: Dati sulla lunghezza delle travi del solaio | H12: Altri dati geometrici e sulla deformabilità:
A13: Luce netta tra gli appoggi: | D13: Lnet | E13: ='SOFTWARE T-CON'!E16 -> 4650 | F13: mm | H13: Interasse travi: | K13: i | L13: ='SOFTWARE T-CON'!E19 -> 650 | M13: mm
A14: Lunghezza appoggio sx: | D14: Lapp,sx | E14: ='SOFTWARE T-CON'!E17 -> - | F14: mm | H14: Limite freccia istantanea: | K14: L/u0 | L14: ='SOFTWARE T-CON'!E20 -> 400 | M14: -
A15: Lunghezza appoggio dx: | D15: Lapp,dx | E15: =E14 -> - | F15: mm | H15: Limite freccia finale: | K15: L/u¥ | L15: ='SOFTWARE T-CON'!E21 -> 300 | M15: -
A16: Lungh. totale della trave: | D16: Ltot | E16: =IF(AND(E14="-",E15="-"),"-",SUM(E13:E15)) -> - | F16: mm | N16: Il presente foglio non può essere modificato e/o distributo in alcun modo senza il consenso scritto di RoofRox Srl.
A17: Luce di calcolo: | D17: Lcalcolo | E17: =IF(AND(E14="-",E15="-"),1.05*E13,IF(Prescrizioni!B187>1,ROUNDUP(VLOOKUP(Prescrizioni!B187,Prescrizioni!B86:F186,5)*Analisi!E13,0),(E14/2+E13+E15/2))) -> 4882.5 | F17: mm | H17: Dimensione trasversale solaio: | K17: Lvano | L17: ='SOFTWARE T-CON'!E18 -> - | M17: mm
A18: ='SOFTWARE T-CON'!H13 -> Posizione rispetto appoggio sinistro: | D18: a | E18: ='SOFTWARE T-CON'!L13 -> 3650 | F18: mm
A19: CARATTERISTICHE GEOMETRICHE DELLA SEZIONE DELLE TRAVI
A20: Soletta | B20: - base: | D20: b1 | E20: =L13 -> 650 | F20: mm
B21: - altezza: | D21: h1 | E21: ='SOFTWARE T-CON'!E26 -> 60 | F21: mm
A22: Strato intermedio | B22: - tipologia: | D22: =VLOOKUP('Caratteristiche Materiali'!B81,'Caratteristiche Materiali'!B65:D75,2) -> Legno di Conifera C24
B23: - spessore: | D23: tS | E23: ='SOFTWARE T-CON'!E27 -> 20 | F23: mm | U23: min sp soletta | V23: =IF(E23=0,40,60) -> 60
A24: Trave | B24: - base: | D24: b2 | E24: ='SOFTWARE T-CON'!E28 -> 160 | F24: mm
B25: - altezza: | D25: h2 | E25: ='SOFTWARE T-CON'!E29 -> 240 | F25: mm
A26: Isolante | B26: - altezza: | D26: hisolante | E26: ='SOFTWARE T-CON'!E30 -> 0 | F26: mm
A27: ANALISI DEI CARICHI
A28: =IF('SOFTWARE T-CON'!K36=1,"Peso proprio trave lignea:","") -> Peso proprio trave lignea: | D28: =IF('SOFTWARE T-CON'!K36=1,"pp. Trave","") -> pp. Trave | E28: =IF('SOFTWARE T-CON'!K36=1,(5.5*E24*E25/10^6),0) -> 0.2112 | F28: =IF('SOFTWARE T-CON'!K36=1,"kN/m","") -> kN/m
A29: Permanente strutturale: | D29: G1,k | E29: =IF('SOFTWARE T-CON'!K36=1,((VLOOKUP('Caratteristiche Materiali'!$B$52,'Caratteristiche Materiali'!$B$42:$K$51,7))*E21/1000+(VLOOKUP('Caratteristiche Materiali'!$B$81,'Caratteristiche Materiali'!B65:F80,3))/100*E23/1000)+(VLOOKUP('Caratteristiche Materiali'!$B$52,'Caratteristiche Materiali'!$B$42:$K$51,7))*(E26/1000)*(E24/1000)/(E20/1000),'SOFTWARE T-CON'!L10) -> 1.61 | F29: kN/m2
A30: Permanente non strutturale: | D30: G2,k | E30: ='SOFTWARE T-CON'!L11 -> 2.5 | F30: kN/m2
A31: Carico concentrato: | D31: Pk | E31: ='SOFTWARE T-CON'!L12 -> 0 | F31: kN
A32: Tipologia edificio: | D32: =VLOOKUP(Prescrizioni!B32,Prescrizioni!B24:G30,2) -> Cat. A: Amb. ad uso residenziale
A33: Carico accidentale: | D33: Qk | E33: ='SOFTWARE T-CON'!L16 -> 2 | F33: kN/m2
A34: COMBINAZIONI DI CARICO | H34: COEFFICIENTI PARZIALI DI SICUREZZA
A35: Azione dei soli carichi permanenti: | D35: qtot,1 | E35: =(E28*L35+(E29*L35+E30*L36)*E20/1000)*(COS(VLOOKUP(Prescrizioni!B187,Prescrizioni!B86:F186,4))) -> 4.07251 | F35: kN/m | H35: Coefficiente per carichi G1: | K35: gG1 | L35: 1.3 | M35: -
A36: Azione di tutti i carichi: | D36: qtot,2 | E36: =(E28*L35+(E29*L35+E30*L36)*E20/1000)*(COS(VLOOKUP(Prescrizioni!B187,Prescrizioni!B86:F186,4)))+((E33*L36)*E20/1000)*(COS(VLOOKUP(Prescrizioni!B187,Prescrizioni!B86:F186,4))) -> 6.02251 | F36: kN/m | H36: Coefficienti per carichi G2/Q: | K36: gG2 | L36: 1.5 | M36: -
A37: Carico concentrato di progetto: | D37: Pd | E37: =E31*L36*(COS(VLOOKUP(Prescrizioni!B187,Prescrizioni!B86:F186,4))) -> 0 | F37: kN | H37: Coeff "quasi permanente" per Q: | K37: y2 | L37: 1 | M37: -
A38: Classe di servizio della struttura: | E38: =VLOOKUP(Prescrizioni!D43,Prescrizioni!D40:F42,2) -> 1 | H38: Coeff. di deformabilità differita: | K38: kdef | L38: =VLOOKUP(Prescrizioni!$D$43,Prescrizioni!D40:F42,3) -> 0.6 | M38: -
A40: Classe di durata del carico: | D40: =VLOOKUP(Prescrizioni!D60,Prescrizioni!D55:F59,2) -> Media | H40: Coeff. di resistenza differita: | K40: kmod | L40: =VLOOKUP(Prescrizioni!$D$60,Prescrizioni!D55:F59,3) -> 0.8 | M40: -
A42: CARATTERISTICHE PRINCIPALI DEL CONNETTORE
A43: Tipologia di connettore: | D43: =VLOOKUP('Caratteristiche Materiali'!B60,'Caratteristiche Materiali'!B58:T59,2) -> T-CON 8.0x205 | H43: Inclinazione connettore: | K43: a | L43: =VLOOKUP(Prescrizioni!B67,Prescrizioni!B65:C66,2) -> 45 | M43: °
A44: Rigidezza connettore allo SLE: | D44: Kser | E44: =IF('Caratteristiche Materiali'!B52<=5,IF(Prescrizioni!B67=2,IF($E$23=0,2000,700),90*$L$259),VLOOKUP('Caratteristiche Materiali'!B52,'Caratteristiche Materiali'!B42:K51,8)*(IF(Prescrizioni!B67=2,IF($E$23=0,2000,700),90*$L$259))) -> 9000 | F44: N/mm | H44: Lunghezza totale connettore: | K44: Ltot | L44: =VLOOKUP('Caratteristiche Materiali'!$B$60,'Caratteristiche Materiali'!$B$58:$G$59,4) -> 208.85 | M44: mm
A45: Rigidezza connettore allo SLU: | D45: Ku | E45: =2/3*$E$44 -> 6000 | F45: N/mm | H45: Lunghezza tratto filettato: | K45: Lfiletto | L45: =VLOOKUP('Caratteristiche Materiali'!$B$60,'Caratteristiche Materiali'!$B$58:$G$59,5) -> 130 | M45: mm
A46: Numero connettori affiancati: | D46: nc | E46: ='SOFTWARE T-CON'!L30 -> 1 | F46: - | H46: Lunghezza tratto in cls: | K46: Lcls | L46: =$L$260 -> 64.85 | M46: mm
A47: Passo minimo connessione: | D47: pmin | E47: ='SOFTWARE T-CON'!L31 -> 130 | F47: mm | H47: Lunghezza tratto in legno: | K47: Lwood | L47: =L258 -> 115.7157288 | M47: mm
A48: Passo massimo connessione: | D48: pmax | E48: ='SOFTWARE T-CON'!L32 -> 330 | F48: mm | H48: Ricoprimento testa conn. (>10mm): | K48: cS | L48: =IF(AND(L262>=9.95,L262<=9.99),10,L262) -> 10 | M48: mm
K49: =IF(L48>=10,"VERIFICATO!","RICONTROLLARE!") -> VERIFICATO!
A50: CARATTERISTICHE PRINCIPALI DEI MATERIALI
A51: Classe della trave lignea: | D51: =VLOOKUP('Caratteristiche Materiali'!B33,'Caratteristiche Materiali'!B5:O32,2) -> GL24h
A52: Resistenza caratt. a flessione: | D52: fm,k | E52: =VLOOKUP('Caratteristiche Materiali'!$B$33,'Caratteristiche Materiali'!B5:O32,3) -> 24 | F52: N/mm2 | H52: Resistenza di progetto a flessione: | K52: fm,d | L52: =E52*$L$40/$L$55 -> 13.24137931 | M52: N/mm2
A53: Resistenza caratt. a trazione: | D53: ft,0,k | E53: =VLOOKUP('Caratteristiche Materiali'!$B$33,'Caratteristiche Materiali'!B5:O32,4) -> 19.2 | F53: N/mm2 | H53: Resistenza di progetto a trazione: | K53: ft,0,d | L53: =E53*$L$40/$L$55 -> 10.59310345 | M53: N/mm2
A54: Resistenza caratt. a taglio: | D54: fV,k | E54: =VLOOKUP('Caratteristiche Materiali'!$B$33,'Caratteristiche Materiali'!B5:O32,8) -> 3.5 | F54: N/mm2 | H54: Resistenza di progetto a taglio: | K54: fV,d | L54: =E54*$L$40/$L$55 -> 1.931034483 | M54: N/mm2
A55: Modulo elastico // alle fibre: | D55: E2 | E55: =VLOOKUP('Caratteristiche Materiali'!$B$33,'Caratteristiche Materiali'!B5:O32,9) -> 11500 | F55: N/mm2 | H55: Coeff. parziale di sicurezza: | K55: gM,L | L55: =IF('Caratteristiche Materiali'!$B$33<=8,VLOOKUP(Prescrizioni!$B$7,Prescrizioni!B3:E6,3),VLOOKUP(Prescrizioni!$B$7,Prescrizioni!B3:E6,4)) -> 1.45 | M55: -
A57: Classe del calcestruzzo: | D57: =VLOOKUP('Caratteristiche Materiali'!B52,'Caratteristiche Materiali'!B42:H51,2) -> C25/30
A58: Resistenza caratt. a compressione: | D58: fc,k | E58: =VLOOKUP('Caratteristiche Materiali'!$B$52,'Caratteristiche Materiali'!$B$42:$G$51,3) -> 25 | F58: N/mm2 | H58: Res. di progetto a compressione: | K58: fc,d | L58: =E58*L61/L60 -> 14.16666667 | M58: N/mm2
A59: Resistenza caratt. a trazione: | D59: ft,k | E59: =VLOOKUP('Caratteristiche Materiali'!$B$52,'Caratteristiche Materiali'!$B$42:$G$51,5) -> 1.795474744 | F59: N/mm2 | H59: Resistenza di progetto a trazione: | K59: ft,d | L59: =IF('Caratteristiche Materiali'!B52<=5,E59/L60,E59*L61/L60) -> 1.196983163 | M59: N/mm2
A60: Modulo elastico: | D60: E1 | E60: =VLOOKUP('Caratteristiche Materiali'!$B$52,'Caratteristiche Materiali'!$B$42:$G$51,6) -> 31447.16144 | F60: N/mm2 | H60: Coeff. Parziale di sicurezza: | K60: gM,cls | L60: 1.5 | M60: -
A61: Coeff. di viscosità a t=∞: | D61: f | E61: 2 | F61: - | H61: Coeff. effetti a lungo termine | K61: aCC | L61: 0.85 | M61: -
A63: Rete elettrosaldata: | C63: Æ | D63: =VLOOKUP('Caratteristiche Materiali'!O48,'Caratteristiche Materiali'!O42:R47,2) -> 6 mm/20x20 | H63: Area di acciaio per metro lineare | K63: A | L63: =VLOOKUP('Caratteristiche Materiali'!O48,'Caratteristiche Materiali'!O42:R47,4) -> 141.3716694 | M63: mm2/m
A64: Resistenza caratt.(Acciaio. B450C): | D64: fy,k | E64: 450 | F64: N/mm2 | H64: Resistenza di progetto (Acc. B450C): | K64: fy,d | L64: =E64/L65 -> 391.3043478 | M64: N/mm2
A65: Copriferro armatura: | D65: s | E65: 30 | F65: mm | H65: Coeff. Parziale di sicurezza: | K65: gM,S | L65: 1.15 | M65: -
A66: NB: Prima dell'esecuzione tutti i calcoli devono essere verificati e approvati dal progettista responsabile delle strutture.
A67: =CONCATENATE('SOFTWARE T-CON'!$A$11,'SOFTWARE T-CON'!$Y$17,'SOFTWARE T-CON'!$C$11) -> Tecnico: Ufficio Tecnico | E67: =E130 -> Versione 2.8.2 | L67: Pagina 1/3
A73: SOLLECITAZIONI MASSIME
A74: TEMPO--> t=0 | H74: TEMPO--> t=¥
A75: Momento massimo in campata: | D75: Mmax | E75: =IF('SOFTWARE T-CON'!$L$12=0,(MAX($E$35:$E$36))*($E$17/1000)^2/8,-(MAX($E$35:$E$36))/2*($E$17/1000*1/2+'SOFTWARE T-CON'!$L$12/(MAX($E$35:$E$36))*(Analisi!$E$17-Analisi!$E$18)/Analisi!$E$17)^2+((MAX($E$35:$E$36))*(Analisi!$E$17/1000)/2+'SOFTWARE T-CON'!$L$12*(Analisi!$E$17-Analisi!$E$18)/Analisi!$E$17)*((Analisi!$E$17/1000)/2+'SOFTWARE T-CON'!$L$12/(MAX($E$35:$E$36))*(Analisi!$E$17-Analisi!$E$18)/Analisi!$E$17)) -> 17.94618113 | F75: kNm | H75: Momento massimo in campata: | K75: Mmax | L75: =E75 -> 17.94618113 | M75: kNm
A76: Momento massimo nella soletta: | D76: Mmax,1 | E76: =L204/$L$216*($E$75) -> 1.517194141 | F76: kNm | H76: Momento massimo nella soletta: | K76: Mmax,1 | L76: =L228/$L$240*($E$75) -> 0.8592688621 | M76: kNm
A77: Momento massimo nella trave: | D77: Mmax,2 | E77: =L203/$L$216*($E$75) -> 8.740658389 | F77: kNm | H77: Momento massimo nella trave: | K77: Mmax,2 | L77: =L227/$L$240*($E$75) -> 9.281824156 | M77: kNm
A78: Azione assiale max nella soletta: | D78: Nmax,1 | E78: =((E204*$L$214*E215)/$L$216)*($E$75*10^3) -> 45.22546234 | F78: kN | H78: Azione assiale max nella soletta: | K78: Nmax,1 | L78: =($E$75*10^3)*(E228*L238*E239)/$L$240 -> 45.912283 | M78: kN
A79: Azione assiale max nella trave: | D79: Nmax,2 | E79: =($E$75*10^3)*(E203*$L$215*E216)/$L$216 -> 45.22546234 | F79: kN | H79: Azione assiale max nella trave: | K79: Nmax,2 | L79: =($E$75*10^3)*(E227*E240)/$L$240 -> 45.912283 | M79: kN
A80: Taglio massimo all'appoggio: | D80: Vmax | E80: =IF('SOFTWARE T-CON'!L12=0,(MAX($E$35:$E$36))*($E$17/1000)/2,MAX((MAX($E$35:$E$36))*($E$17/1000)/2+'SOFTWARE T-CON'!L12*(Analisi!E17-Analisi!E18)/Analisi!E17,(MAX($E$35:$E$36))*($E$17/1000)/2+'SOFTWARE T-CON'!L12*(Analisi!E18)/Analisi!E17)) -> 14.70245254 | F80: kN | H80: Taglio massimo all'appoggio: | K80: Vmax | L80: =E80 -> 14.70245254 | M80: kN
A81: QUADRO DI VERIFICA | N81: Il presente foglio non può essere modificato e/o distributo in alcun modo senza il consenso scritto di RoofRox Srl.
A82: Superficie totale solaio: | D82: Atot | E82: =IF('SOFTWARE T-CON'!E18="-","-",(E17*L17/10^6)) -> - | F82: m2 | P82: spazi pmax | Q82: =IF(E47=E48,(INT(E17/E48)),INT(0.5*E17/E48)) -> 7 | S82: =ISODD(Q82) -> TRUE
A83: Numero di connettori per trave: | D83: nc,trave | E83: =(2*Q85+Q84)*E46 -> 26 | F83: - | H83: Numero di connettori totale: | K83: nc,totale | L83: =IF('SOFTWARE T-CON'!E18="-",Analisi!E83,E83*ROUNDUP('SOFTWARE T-CON'!E18/'SOFTWARE T-CON'!E19,0)) -> 26 | M83: - | P83: spazi pmin | Q83: =IF(E48=E47,0,INT(((E17-Q82*E48)/2)/E47)) -> 9
A84: Distanza minima da bordo trave: | D84: a3 | E84: =(E17-2*Q83*E47-Q82*E48)/2 -> 116.25 | F84: mm | H84: Incidenza al metro quadro: | K84: incidenza | L84: =IF('SOFTWARE T-CON'!E18="-","-",L83/E82) -> - | M84: conn/m2 | P84: conn p max | Q84: =IF(S82=FALSE(),Q82,Q82+1) -> 8
A85: Distanza minima bordo trave finale: | D85: a3,finale | E85: =IF(E47=E48,E84,IF(E84<=75,E84+E47,E84)) -> 116.25 | F85: mm | P85: conn pmin | Q85: =(IF(E48=E47,0,IF(S82=FALSE(),Q83-1,Q83))) -> 9
A86: VERIFICHE GEOMETRICHE SUI CONNETTORI
A87: Spaziatura longitudinale | D87: a1 | E87: =E47 -> 130 | F87: mm | G87: =IF(E87>=L87,"OK!","NO!") -> OK! | H87: Verifica spaziatura longitudinale | K87: a1,min | L87: =MIN(100,(4+ABS(COS(E267)))*E260) -> 37.65685425 | M87: mm
A88: Spaziatura trasversale | D88: a2 | E88: =IF(E46=1,E24/2,E24-2*E90) -> 80 | F88: mm | G88: =IF(E88>=L88,"OK!","NO!") -> OK! | H88: Verifica spaziatura longitudinale | K88: a2,min | L88: =(3+SIN(E267))*E260 -> 29.65685425 | M88: mm
A89: Spaziatura dal bordo (long.) | D89: a3 | E89: =E85 -> 116.25 | F89: mm | G89: =IF(E89>=L89,"OK!","NO!") -> OK! | H89: Verifica spaziatura longitudinale | K89: a3,min | L89: =((7+5*(COS(E267)))*E260) -> 84.28427125 | M89: mm
A90: Spaziatura dal bordo (trasv.) | D90: a4 | E90: 40 | F90: mm | G90: =IF(E90>=L90,"OK!","NO!") -> OK! | H90: Verifica spaziatura longitudinale | K90: a4,min | L90: =(3+2*SIN(E267))*E260 -> 35.3137085 | M90: mm
A92: GRANDEZZE RELATIVE ALLA SEZIONE COMPOSTA
A93: Passo equival. della connessione: | D93: peq | E93: =0.75*E47+0.25*E48 -> 180 | F93: mm | H93: Rapporto tra pmax/pmin: | K93: r | L93: =(E48/E47) -> 2.538461538 | M93: -
K94: =IF(L93>4,"RICONTROLLARE!","VERIFICATO!") -> VERIFICATO!
A95: VERIFICA DELLE SOLLECITAZIONI ALLO SLU A TEMPO t=0
A96: Soll. normali nel cls: - Compressione | D96: s1 | E96: =($E$78*10^3)/($E$20*$E$21+$E$26*$E$24) -> 1.15962724 | F96: N/mm2
A97: - Flessione sup. | D97: sm,sup,1 | E97: =(E76*10^6)*(E21+E26-L200)/((($E$24*$E$26^3/12)+$E$26*$E$24*($L$200-$E$26/2)^2+($E$20*$E$21^3/12)+$E$20*$E$21*($L$200-$E$21/2)^2)) -> 3.890241387 | F97: N/mm2 | I97: -Flessione inf. | K97: sm,inf.,1 | L97: =(E76*10^6)*(L200)/((($E$24*$E$26^3/12)+$E$26*$E$24*($L$200-$E$26/2)^2+($E$20*$E$21^3/12)+$E$20*$E$21*($L$200-$E$21/2)^2)) -> 3.890241387 | M97: N/mm2
A98: Tens. normale:lembo sup. compresso: | D98: s1,C | E98: =E96+E97 -> 5.049868627 | F98: N/mm2 | H98: =IF(E98<=L58,"minore di","maggiore di") -> minore di | I98: fc,k | K98: =IF(E98<=L58,"VERIFICATO!","RICONTROLLARE!") -> VERIFICATO!
A99: Tens. normale: lembo inferiore teso: | D99: s1,T | E99: =L97-E96 -> 2.730614148 | F99: N/mm2 | H99: =IF(E99<=L59,"minore di","maggiore di") -> maggiore di | I99: ft,k | K99: =IF(E99<=L59,"VERIFICATO!","ARMATURA NECESSARIA!") -> ARMATURA NECESSARIA!
J100: =IF(K99="ARMATURA NECESSARIA!","Controllare (*) VERIFICA ARMATURA","CLS TESO OK!") -> Controllare (*) VERIFICA ARMATURA
A101: Soll. normali in trave: - Compressione | D101: s2 | E101: =($E$79*10^3)/($E$24*$E$25) -> 1.177746415 | F101: N/mm2
A102: - Flessione | D102: sm,2 | E102: =(0.5*$E$25*$E$77*10^6)/($E$24*$E$25^3/12) -> 5.690532806 | F102: N/mm2
A103: Verifica tensoflessione:(s2/ft,0,d) + (sm,2/fm,y,d)= | E103: =E101/L53+E102/L52 -> 0.540934268 | F103: - | H103: =IF(E103<=I103,"minore di","maggiore di") -> minore di | I103: 1 | K103: =IF(E103<=I103,"VERIFICATO!","RICONTROLLARE!") -> VERIFICATO!
A105: Sollecitazione tagliante nella trave: | D105: t2,max | E105: =0.5*($E$55*($E$25/2+$E$216)^2/$L$216)*($E$80*10^3) -> 0.4074852974 | F105: N/mm2 | H105: =IF(E105<=L54,"minore di","maggiore di") -> minore di | I105: fV,d | K105: =IF(E105<=L54,"VERIFICATO!","RICONTROLLARE!") -> VERIFICATO!
A107: Azione agente sulla connessione: | D107: Fconn | E107: =((L214*E215*E204*E47)/L216)*(E80) -> 4.816639103 | F107: kN | H107: =IF(E107<=I107,"minore di Rd =","maggiore di Rd =") -> minore di Rd = | I107: =IF(Prescrizioni!B67=1,Analisi!L281,Analisi!E281) -> 5.755895175 | J107: kN | K107: =IF(E107<=I107,"VERIFICATO!","RICONTROLLARE!") -> VERIFICATO!
A108: VERIFICA DELLE SOLLECITAZIONI ALLO SLU A TEMPO t=¥
A109: Soll. normali nel cls: - Compressione | D109: s1 | E109: =L78*10^3/(E20*E21+E24*E26) -> 1.177238026 | F109: N/mm2
A110: - Flessione sup. | D110: sm,sup,1 | E110: =(E21+E26-L200)*(L76*10^6)/((($E$24*$E$26^3/12)+$E$26*$E$24*($L$200-$E$26/2)^2+($E$20*$E$21^3/12)+$E$20*$E$21*($L$200-$E$21/2)^2)) -> 2.203253493 | F110: N/mm2 | I110: -Flessione inf. | K110: sm,inf,1 | L110: =(L200)*(L76*10^6)/((($E$24*$E$26^3/12)+$E$26*$E$24*($L$200-$E$26/2)^2+($E$20*$E$21^3/12)+$E$20*$E$21*($L$200-$E$21/2)^2)) -> 2.203253493 | M110: N/mm2
A111: Tens. normale:lembo sup. compresso: | D111: s1,C | E111: =E110+E109 -> 3.380491518 | F111: N/mm2 | H111: =IF(E111<=L58,"minore di","maggiore di") -> minore di | I111: fc,k | K111: =IF(E111<=L58,"VERIFICATO!","RICONTROLLARE!") -> VERIFICATO!
A112: Tens. normale: lembo inferiore teso: | D112: s1,T | E112: =L110-E109 -> 1.026015467 | F112: N/mm2 | H112: =IF(E112<=L59,"minore di","maggiore di") -> minore di | I112: ft,k | K112: =IF(E112<=L59,"VERIFICATO!","ARMATURA NECESSARIA!") -> VERIFICATO!
J113: =IF(K112="ARMATURA NECESSARIA!","Controllare (*) VERIFICA ARMATURA","CLS TESO OK!") -> CLS TESO OK!
A114: Soll. normali in trave: - Compressione | D114: s2 | E114: =L79*10^3/(E24*E25) -> 1.19563237 | F114: N/mm2
A115: - Flessione | D115: sm,2 | E115: =(0.5*E25*L77*10^6)/(E24*E25^3/12) -> 6.042854268 | F115: N/mm2
A116: Verifica tensoflessione:(s2/ft,0,d) + (sm,2/fm,y,d)= | E116: =E114/L53+E115/L52 -> 0.5692303312 | F116: - | H116: =IF(E116<=I116,"minore di","maggiore di") -> minore di | I116: 1 | K116: =IF(E116<=I116,"VERIFICATO!","RICONTROLLARE!") -> VERIFICATO!
A118: Sollecitazione tagliante nella trave: | D118: t2,max | E118: =(0.5*L221*($E$25/2+$E$240)^2/L240)*L80*10^3 -> 0.4262088105 | F118: N/mm2 | H118: =IF(E118<=L54,"minore di","maggiore di") -> minore di | I118: fV,d | K118: =IF(E118<=L54,"VERIFICATO!","RICONTROLLARE!") -> VERIFICATO!
A120: Azione agente sulla connessione: | D120: Fconn | E120: =(L238*E228*E239*E47)/L240*L80 -> 4.889787437 | F120: kN | H120: =IF(E120<=I120,"minore di Rd =","maggiore di Rd =") -> minore di Rd = | I120: =IF(Prescrizioni!B67=1,Analisi!L281,Analisi!E281) -> 5.755895175 | K120: =IF(E120<=I120,"VERIFICATO!","RICONTROLLARE!") -> VERIFICATO!
A121: VERIFICA DELLE DEFORMAZIONI ALLO SLU A TEMPO t=0 | H121: VERIFICA DELLE DEFORMAZIONI ALLO SLU A TEMPO t=¥
AF122: x t=0 = | AH122: mm
A123: Freccia del carico permanente: | D123: u0,g | E123: =1.1*5/384*((E28+(E29+E30)*L13/1000)*E17^4/L211)+1.1*((E31*10^3/3)*(E18^2*(E17-E18)^2)/(L211*E17)) -> 4.6633111 | F123: mm | H123: Freccia del carico permanente: | K123: u¥,g | L123: =1.1*5/384*((E28+(E29+E30)*L13/1000)*E17^4/L235)+1.1*((E31*10^3/3)*(E18^2*(E17-E18)^2)/(L235*E17)) -> 7.971484443 | M123: mm | AF123: x t=00 = | AH123: mm
A124: Freccia del carico variabile: | D124: u0,q | E124: =VLOOKUP(Prescrizioni!B32,Prescrizioni!B24:G30,6)*1.1*5/384*(((E33)*L13/1000)*E17^4/L211) -> 0.6308985774 | F124: mm | H124: Freccia del carico variabile: | K124: u¥,q | L124: =VLOOKUP(Prescrizioni!B32,Prescrizioni!B24:G30,6)*(1.1*5/384*(((E33)*L13/1000)*E17^4/L235)) -> 1.078460795 | M124: mm
A126: Freccia totale: | D126: u0,tot | E126: =SUM(E123:E124) -> 5.294209677 | F126: mm | H126: Freccia totale: | K126: u¥,tot | L126: =SUM(L123:L124) -> 9.049945237 | M126: mm
D127: L/u0 | E127: =FLOOR(E17/E126,1) -> 922 | F127: - | K127: L/u¥ | L127: =FLOOR(E17/L126,1) -> 539 | M127: -
D128: =IF(E127>=L14,"VERIFICATO!","RICONTROLLARE!") -> VERIFICATO! | K128: =IF(L127>=L15,"VERIFICATO!","RICONTROLLARE!") -> VERIFICATO!
A129: NB: Prima dell'esecuzione tutti i calcoli devono essere verificati e approvati dal progettista responsabile delle strutture.
A130: =CONCATENATE('SOFTWARE T-CON'!$A$11,'SOFTWARE T-CON'!$Y$17,'SOFTWARE T-CON'!$C$11) -> Tecnico: Ufficio Tecnico | E130: =CONCATENATE("Versione ",'SOFTWARE T-CON'!AD7) -> Versione 2.8.2 | L130: Pagina 2/3
A136: (*) VERIFICA DELL'ARMATURA DELLA SOLETTA t=0
A137: Momento max agente sulla soletta: | D137: M1,max | E137: =MAX(E76,L76) -> 1.517194141 | F137: kNm | H137: Area di armatura prevista per m.l.: | K137: As/ml | L137: =L63 -> 141.3716694 | M137: mm2/m
A138: Area di armatura minima: | D138: As,min | E138: =E137*10^6/(0.9*E65*L64) -> 143.6027376 | F138: mm2 | G138: =IF(E138<=L138,"<",">") -> > | H138: Area di armatura prevista: | K138: As | L138: =L63*L13/1000 -> 91.89158512 | M138: mm2
A140: Tens.max flessione soletta/isolante: | D140: sm,1 - sol/iso | E140: =IF(E144=0,0,E144*(E76*10^6)/((($E$24*$E$26^3/12)+$E$26*$E$24*($L$200-$E$26/2)^2+($E$20*$E$21^3/12)+$E$20*$E$21*($L$200-$E$21/2)^2))) -> 3.890241387 | F140: N/mm2 | H140: Area minima di acciaio: | K140: Amin | L140: =ABS(E145/(E64/L65)) -> 68.03780251 | M140: mm2
A141: Tens.max trazione soletta/isolante: | D141: s1 - sol/iso | E141: =E140-E96 -> 2.730614148 | F141: N/mm2 | H141: Passo tondi: | K141: P.T. | L141: =VLOOKUP('Caratteristiche Materiali'!O48,'Caratteristiche Materiali'!O41:T47,5) -> 200 | M141: mm
A142: Asse neutro tensioni nel cls: | D142: x = yG,CLS | E142: =L200 -> 30 | F142: mm | H142: Numero tondi nell'interasse coll.: | K142: Nt | L142: =E20/L141 -> 3.25 | M142: -
A143: Altezza isolante: | D143: hisolante | E143: =E26 -> 0 | F143: mm | H143: Area barra rete e.s.: | K143: As,d | L143: =VLOOKUP('Caratteristiche Materiali'!O48,'Caratteristiche Materiali'!O42:T47,6) -> 28.27433388 | M143: mm2
A144: Altezza cls teso in soletta: | D144: x - hisolante | E144: =IF(E143>E142,0,E142-E143) -> 30 | F144: mm | H144: Rete disposta: | K144: AS,d | L144: =L142*L143 -> 91.89158512 | M144: mm2
A145: Trazione in rete elettrosaldata: | D145: Ft,l | E145: =E141*E144/2*E20 -> 26623.48794 | F145: N | K145: =IF(E145<=0,"ARMATURA NON NECESSARIA",IF(L144>=L140,"VERIFICATO","ARMATURA NON SUFFICIENTE")) -> VERIFICATO
A146: (*) VERIFICA DELL'ARMATURA LONGITUDINALE DEL CORDOLO NEL CASO DI TAVOLATO INTERROTTO / PRESENZA DI ISOLANTE t=0
A147: Tens.max trazione CLS: | D147: s1,T | E147: =E99 -> 2.730614148 | F147: N/mm2 | H147: Area minima di acciaio | K147: Amin,l | L147: =ABS(E147*L200/2*E148/(E64/L65)) -> 16.74776677 | M147: mm2
A148: Larghezza cordolo in calcestruzzo: | D148: Biso | E148: =E24 -> 160 | F148: mm | H148: Area di progetto impiegata | K148: As,c,d | L148: =VLOOKUP('Caratteristiche Materiali'!V9,'Caratteristiche Materiali'!V5:X8,3)*VLOOKUP('Caratteristiche Materiali'!V15,'Caratteristiche Materiali'!V12:W14,2) -> 0 | M148: mm2
K149: =IF('SOFTWARE T-CON'!E30=0,"ARMATURA NON NECESSARIA",IF(L148>=L147,"VERIFICATO","ARMATURA NON SUFFICIENTE")) -> ARMATURA NON NECESSARIA
A150: (*) VERIFICA DELL'ARMATURA DELLA SOLETTA t=¥
A151: Tens.max flessione soletta/isolante: | D151: sm,1 - sol/iso | E151: =IF(E155=0,0,E155*L76*10^6/((($E$24*$E$26^3/12)+$E$26*$E$24*($L$200-$E$26/2)^2+($E$20*$E$21^3/12)+$E$20*$E$21*($L$200-$E$21/2)^2))) -> 2.203253493 | F151: N/mm1 | H151: Area minima di acciaio: | K151: Amin | L151: =ABS(E156/(E64/L65)) -> 25.56488538 | M151: mm2
A152: Tens.max trazione soletta/isolante: | D152: s1 - sol/iso | E152: =E151-E109 -> 1.026015467 | F152: N/mm2 | H152: Passo tondi: | K152: P.T. | L152: =L141 -> 200 | M152: mm
A153: Asse neutro tensioni nel cls: | D153: x = yG,CLS | E153: =E142 -> 30 | F153: mm | H153: Numero tondi nell'interasse coll.: | K153: Nt | L153: =E20/L141 -> 3.25 | M153: -
A154: Altezza isolante: | D154: hisolante | E154: =E143 -> 0 | F154: mm | H154: Area barra rete e.s.: | K154: As,d | L154: =L143 -> 28.27433388 | M154: mm2
A155: Altezza cls teso in soletta: | D155: x - hisolante | E155: =E144 -> 30 | F155: mm | H155: Rete disposta: | K155: AS,d | L155: =L144 -> 91.89158512 | M155: mm2
A156: Trazione in rete elettrosaldata: | D156: Ft,l | E156: =E155*E152/2*E20 -> 10003.6508 | F156: N | K156: =IF(E156<=0,"ARMATURA NON NECESSARIA",IF(L155>=L151,"VERIFICATO","ARMATURA NON SUFFICIENTE")) -> VERIFICATO
A157: (*) VERIFICA DELL'ARMATURA LONGITUDINALE DEL CORDOLO NEL CASO DI TAVOLATO INTERROTTO / PRESENZA DI ISOLANTE t=¥
A158: Tens.max trazione CLS: | D158: s1,T | E158: =E112 -> 1.026015467 | F158: N/mm2 | H158: Area minima di acciaio | K158: Amin,l | L158: =ABS(E158*L200/2*E159/(E64/L65)) -> 6.292894863 | M158: mm2
A159: Larghezza cordolo in calcestruzzo: | D159: Biso | E159: =E148 -> 160 | F159: mm | H159: Area di progetto impiegata | K159: As,c,d | L159: =L148 -> 0 | M159: mm2
K160: =IF('SOFTWARE T-CON'!E30=0,"ARMATURA NON NECESSARIA",IF(L159>=L158,"VERIFICATO","ARMATURA NON SUFFICIENTE")) -> ARMATURA NON NECESSARIA
N165: Il presente foglio non può essere modificato e/o distributo in alcun modo senza il consenso scritto di RoofRox Srl.
A195: NB: Prima dell'esecuzione tutti i calcoli devono essere verificati e approvati dal progettista responsabile delle strutture.
A196: =CONCATENATE('SOFTWARE T-CON'!$A$11,'SOFTWARE T-CON'!$Y$17,'SOFTWARE T-CON'!$C$11) -> Tecnico: Ufficio Tecnico | E196: =E130 -> Versione 2.8.2 | L196: Pagina 3/3
A198: DATI A TEMPO t=0
A199: Dati base della sezione
A200: Distanza tra i baricentri L/cls: | D200: a | E200: =$L$200+$E$23+$E$25/2 -> 170 | F200: mm | H200: Baricentro sezione in cls | K200: yG,CLS | L200: =((E24*E26)*E26/2+(E21*E20)*(E26+E21/2))/(E24*E26+E21*E20) -> 30 | M200: mm
A201: Posizione del baricentro: | D201: yG,¥ | E201: =$E$25/2+(E204*E200)/(E203+E204) -> 244.993866 | F201: mm
A203: Rigidezza assiale sezione lignea: | D203: E2A2 | E203: =E55*($E$24*$E$25) -> 441600000 | F203: N | H203: Rigidezza flex sezione lignea: | K203: E2J2 | L203: =1/12*((E55*$E$24*$E$25^3)) -> 2119680000000 | M203: Nmm2
A204: Rigidezza assiale sezione c.a: | D204: E1A1 | E204: =E60*($E$20*$E$21+$E$24*$E$26) -> 1226439296 | F204: N | H204: Rigidezza flex sezione c.a.: | K204: E1J1 | L204: =E60*(($E$24*$E$26^3/12)+$E$26*$E$24*($L$200-$E$26/2)^2+($E$20*$E$21^3/12)+$E$20*$E$21*($L$200-$E$21/2)^2) -> 3.679317888e+11 | M204: Nmm2
A205: Rigidezza assiale sezione composta: | D205: (EA)0 | E205: =(E203*E204)/(E203+E204) -> 324689948.5 | F205: N | H205: Rigidezza flex conn. nulla: | K205: (EJ)0 | L205: =L204+L203 -> 2.487611789e+12 | M205: Nmm2
H206: Rigidezza flex conn. rigida: | K206: (EJ)¥ | L206: =L205+E205*E200^2 -> 1.18711513e+13 | M206: Nmm2
A208: Calcolo della rigidezza efficace allo SLE
A209: Modulo di scorrimento: | D209: K=Kser | E209: =E44 -> 9000 | F209: N/mm | H209: Parametro g1: | K209: g1 | L209: =(1+((PI())^2*E204*E93)/(E46*E209*E17^2))^(-1) -> 0.08964376279 | M209: -
A210: Distanza tra baricentri G1-G0: | D210: a1 | E210: =E200-E211 -> 136.112778 | F210: mm | H210: Parametro g2: | K210: g2 | L210: 1 | M210: -
A211: Distanza tra baricentri G2-G0: | D211: a2 | E211: =(L209*E204*E200)/(L209*E204+E203) -> 33.88722202 | F211: mm | H211: Rigidezza efficace allo SLE: | K211: (EJ)ef,SLE | L211: =(L203+L204)+(L210*E203*E211^2)+(L209*E204*E210^2) -> 5.03159332e+12 | M211: Nmm2
A213: Calcolo della rigidezza efficace allo SLU
A214: Modulo di scorrimento: | D214: Ku | E214: =E45 -> 6000 | F214: N/mm | H214: Parametro g1: | K214: g1 | L214: =(1+((PI())^2*E204*E93)/(E46*E214*E17^2))^(-1) -> 0.06160329216 | M214: -
A215: Distanza tra baricentri G1-G0: | D215: a1 | E215: =E200-E216 -> 145.1640884 | F215: mm | H215: Parametro g2: | K215: g2 | L215: 1 | M215: -
A216: Distanza tra baricentri G2-G0: | D216: a2 | E216: =(L214*E200*E204)/(L214*E204+E203) -> 24.83591162 | F216: mm | H216: Rigidezza efficace allo SLU: | K216: (EJ)ef,SLU | L216: =(L204+L203)+(L215*E203*E216^2)+(L214*E204*E215^2) -> 4.352093346e+12 | M216: Nmm2
A218: Efficienza del sistema allo SLE: | D218: hSLE | E218: =(L211-$L$205)/($L$206-$L$205) -> 0.27111108 | H218: Efficienza del sistema allo SLU: | K218: hSLU | L218: =(L216-$L$205)/($L$206-$L$205) -> 0.1986970433 | M218: -
A220: DATI A TEMPO t=¥
A221: Modulo elastico cls a t=¥ | D221: E1,¥ | E221: =$E$60/(1+$E$61*$L$37) -> 10482.38715 | F221: N/mm2 | H221: Modulo elastico legno a t=¥ | K221: E2,¥ | L221: =$E$55/(1+$L$38*$L$37) -> 7187.5 | M221: N/mm2
A223: Dati base della sezione
A224: Distanza tra i baricentri L/cls: | D224: a | E224: =E200 -> 170 | F224: mm
A225: Posizione del baricentro: | D225: yG,¥ | E225: =$E$25/2+(E228*E224)/(E227+E228) -> 221.4849554 | F225: mm
A227: Rigidezza assiale sezione lignea: | D227: E2A2 | E227: =L221*($E$24*$E$25) -> 276000000 | F227: N | H227: Rigidezza flex sezione lignea: | K227: E2J2 | L227: =1/12*((L221*$E$24*$E$25^3)) -> 1324800000000 | M227: Nmm2
A228: Rigidezza assiale sezione c.a: | D228: E1A1 | E228: =E221*($E$20*$E$21+$E$24*$E$26) -> 408813098.7 | F228: N | H228: Rigidezza flex sezione c.a.: | K228: E1J1 | L228: =E221*(($E$24*$E$26^3/12)+$E$26*$E$24*($L$200-$E$26/2)^2+($E$20*$E$21^3/12)+$E$20*$E$21*($L$200-$E$21/2)^2) -> 1.226439296e+11 | M228: Nmm2
A229: Rigidezza assiale sezione composta: | D229: (EA)0 | E229: =(E227*E228)/(E227+E228) -> 164763809.9 | F229: N | H229: Rigidezza flex conn. nulla: | K229: (EJ)0 | L229: =L228+L227 -> 1.44744393e+12 | M229: Nmm2
H230: Rigidezza flex conn. rigida: | K230: (EJ)¥ | L230: =L229+E229*E224^2 -> 6.209118037e+12 | M230: Nmm2
A232: Calcolo della rigidezza efficace allo SLE
A233: Modulo di scorrimento: | D233: K=Kser | E233: =$E$44/(1+$L$38) -> 5625 | F233: N/mm | H233: Parametro g1: | K233: g1 | L233: =(1+((PI())^2*$E$228*$E$93)/(E46*E233*$E$17^2))^(-1) -> 0.1558569057 | M233: -
A234: Distanza tra baricentri G1-G0: | D234: a1 | E234: =E224-E235 -> 138.1152269 | F234: mm | H234: Parametro g2: | K234: g2 | L234: 1 | M234: -
A235: Distanza tra baricentri G2-G0: | D235: a2 | E235: =(L233*E228*E224)/(L233*E228+E227) -> 31.88477313 | F235: mm | H235: Rigidezza efficace allo SLE: | K235: (EJ)ef,SLE | L235: =(L227+L228)+(L234*E227*E235^2)+(L233*E228*E234^2) -> 2.943477485e+12 | M235: Nmm2
A237: Calcolo della rigidezza efficace allo SLU
A238: Modulo di scorrimento: | D238: Ku | E238: =$E$45/(1+$L$38*$L$37) -> 3750 | F238: N/mm | H238: Parametro g1: | K238: g1 | L238: =(1+((PI())^2*$E$228*$E$93)/(E46*E238*$E$17^2))^(-1) -> 0.109598498 | M238: -
A239: Distanza tra baricentri G1-G0: | D239: a1 | E239: =E224-E240 -> 146.2569346 | F239: mm | H239: Parametro g2: | K239: g2 | L239: 1 | M239: -
A240: Distanza tra baricentri G2-G0: | D240: a2 | E240: =(L238*E224*E228)/(L238*E228+E227) -> 23.74306545 | F240: mm | H240: Rigidezza efficace allo SLU: | K240: (EJ)ef,SLU | L240: =(L228+L227)+(L239*E227*E240^2)+(L238*E228*E239^2) -> 2.56146856e+12 | M240: Nmm2
A242: Efficienza del sistema allo SLE: | D242: hSLE | E242: =(L235-$L$229)/($L$230-$L$229) -> 0.3141822648 | H242: Efficienza del sistema allo SLU: | K242: hSLU | L242: =(L240-$L$229)/($L$230-$L$229) -> 0.2339565047 | M242: -
A256: RESISTENZA DEL CONNETTORE
A257: Caratteristiche della connessione:
A258: Densità caratteristica del legname: | D258: rk | E258: =VLOOKUP('Caratteristiche Materiali'!$B$33,'Caratteristiche Materiali'!$B$9:$O$30,13) -> 385 | F258: kg/m3 | H258: Lunghezza parte filettata nel legno: | K258: Lwood | L258: =$L$45-$E$23/SIN($E$267)+$L$261 -> 115.7157288 | M258: mm
A259: Diametro efficace del connettore: | D259: def | E259: =VLOOKUP('Caratteristiche Materiali'!$B$60,'Caratteristiche Materiali'!$B$58:$U$59,14) -> 5.83 | F259: mm | H259: Lunghezza efficace della vite: | K259: Lef | L259: =IF($L$258<=(VLOOKUP('Caratteristiche Materiali'!$B$60,'Caratteristiche Materiali'!$B$58:$R$59,15)),$L$258,VLOOKUP('Caratteristiche Materiali'!$B$60,'Caratteristiche Materiali'!$B$58:$R$59,15)) -> 100 | M259: mm
A260: Diametro filettatura esterna: | D260: d | E260: =VLOOKUP('Caratteristiche Materiali'!$B$60,'Caratteristiche Materiali'!$B$58:$T$59,3) -> 8 | F260: mm | H260: Lunghezza del tratto nel calstruzzo: | K260: Lcls | L260: =$L$44-$L$45-$L$261 -> 64.85 | M260: mm
A261: Diametro gambo liscio: | D261: dS | E261: =VLOOKUP('Caratteristiche Materiali'!$B$60,'Caratteristiche Materiali'!$B$58:$U$59,17) -> 5.9 | F261: mm | H261: Ammorsam. alesatore in tavolato: | K261: LA | L261: =IF(E23=0,0,IF(Prescrizioni!B67=1,14,10)) -> 14 | M261: mm
A262: Tensione di rifollamento // fibre: | D262: fh,0,k | E262: =0.082*(1-0.01*E260)*E258 -> 29.0444 | F262: N/mm2 | H262: Ricoprimento della testa del conn.: | K262: cS | L262: =IF(E26>0,E26+IF(E23=0,IF(Prescrizioni!B67=2,$E$21-$L$260*SIN($E$267)+(VLOOKUP('Caratteristiche Materiali'!B81,'Caratteristiche Materiali'!B65:F80,5))*SIN($E$267),($E$21-$L$260*SIN($E$267)+(VLOOKUP('Caratteristiche Materiali'!B81,'Caratteristiche Materiali'!B65:F80,5))*SIN($E$267)-$E$261/(2*SIN($E$267)))),IF(Prescrizioni!B67=2,$E$21-$L$260*SIN($E$267),($E$21-$L$260*SIN($E$267)-$E$261/(2*SIN($E$267))))),IF(E23=0,IF(Prescrizioni!B67=2,$E$21-$L$260*SIN($E$267)+(VLOOKUP('Caratteristiche Materiali'!B81,'Caratteristiche Materiali'!B65:F80,5))*SIN($E$267),($E$21-$L$260*SIN($E$267)+(VLOOKUP('Caratteristiche Materiali'!B81,'Caratteristiche Materiali'!B65:F80,5))*SIN($E$267)-$E$261/(2*SIN($E$267)))),IF(Prescrizioni!B67=2,$E$21-$L$260*SIN($E$267),($E$21-$L$260*SIN($E$267)-$E$261/(2*SIN($E$267)))))) -> 9.972195231 | M262: mm
A263: Tensione di rifollamento generica: | D263: fh,alfa,k | E263: =$E$262/($E$264*(SIN($E$267))^2+(COS($E$267))^2) -> 23.83179142 | F263: N/mm2 | H263: Momento caratt. di snervamento: | K263: My,k | L263: =VLOOKUP('Caratteristiche Materiali'!$B$60,'Caratteristiche Materiali'!$B$58:$X$59,16) -> 22600 | M263: Nmm | W263: RES45 | X263: =L259*E260*L264/(1.2*(COS(E267))^2+(SIN(E267))^2) -> 7781.818182
A264: Coefficiente k90 | D264: k90 | E264: =1.35+0.015*E259 -> 1.43745 | F264: - | H264: Res. caratt. a estrazione della vite: | K264: fax,k,90 | L264: =VLOOKUP('Caratteristiche Materiali'!$B$60,'Caratteristiche Materiali'!$B$58:$T$59,18) -> 10.7 | M264: N/mm2 | X264: =X263/1000 -> 7.781818182
A265: Densità caratteristica del tavolato: | D265: rk,tavolato | E265: =VLOOKUP('Caratteristiche Materiali'!$B$81,'Caratteristiche Materiali'!$B$65:$D$70,3) -> 550 | F265: kg/m3 | H265: Capacità caratt. a trazione del conn.: | K265: ftens,k | L265: =VLOOKUP('Caratteristiche Materiali'!$B$60,'Caratteristiche Materiali'!$B$58:$T$59,19) -> 22.7 | M265: kN
A266: Tens. rifoll. // fibre tavolato: | D266: fh,0,k,tavol. | E266: =0.082*(1-0.01*E260)*E265 -> 41.492 | F266: N/mm2 | H266: Coeff. parziale di sicurezza unioni: | K266: gunioni | L266: =VLOOKUP(Prescrizioni!$B$7,Prescrizioni!$B$3:$F$6,5) -> 1.5 | M266: - | X266: =X264*0.9/1.3 -> 5.387412587
A267: Inclinazione connettore in radianti: | D267: a | E267: =(PI()/180)*VLOOKUP(Prescrizioni!$B$67,Prescrizioni!$B$65:$C$66,2) -> 0.7853981634 | F267: rad | H267: kd | K267: kd | L267: =MIN($E$260/8,1) -> 1 | M267: - | X267: =X266*L278 -> 5.387412587
A269: Resistenza della connessione per viti caricate lateralmente: | H269: Resistenza della connessione per viti caricate assialmente:
A271: Res. Con ts > 0 | D271: Rk,II,modo | E271: =((E266*E260*E23)*((SQRT((1+4*L263/(E266*E260*E23^2))+(E262/(2*E266))))-1))/10^3 -> 2.821989739 | F271: kN | H271: Primo modo di rottura | K271: Fax,k,Rk | L271: =(100*L259*(E258/350)^0.8)/1000 -> 10.79230345 | M271: kN
H272: Secondo modo di rottura | K272: Ft,Rk | L272: =$L$265 -> 22.7 | M272: kN
A273: Res. Con ts = 0 | D273: Rk,III,modo | E273: =(SQRT(4*L263*E266*E260))/10^3 -> 5.477865862 | F273: kN
A275: Resistenza totale | D275: Rk | E275: =IF('Caratteristiche Materiali'!B52<=5,IF($E$23=0,$E$273,$E$271),VLOOKUP('Caratteristiche Materiali'!$B$52,'Caratteristiche Materiali'!$B$48:$K$51,8)*IF($E$23=0,$E$273,$E$271)) -> 2.821989739 | F275: kN | H275: Resistenza totale | K275: Rk | L275: =IF('Caratteristiche Materiali'!B52<=5,MIN($L$271:$L$272),VLOOKUP('Caratteristiche Materiali'!$B$52,'Caratteristiche Materiali'!$B$48:$K$51,8)*MIN($L$271:$L$272)) -> 10.79230345 | M275: kN
A277: Numero di elementi del collegam. | D277: nc | E277: =$E$46 -> 1 | F277: - | H277: Numero di elementi del collegam. | K277: nc | L277: =$E$46 -> 1 | M277: -
A278: Numero efficace | D278: nef | E278: =MIN(E277,(E277^0.9)*(E47/(13*E259))^0.25) -> 1 | F278: - | H278: Numero efficace | K278: nef | L278: =L277^0.9 -> 1 | M278: -
A280: Resistenza caratteristica totale | D280: Rk,tot | E280: =E278*E275 -> 2.821989739 | F280: kN | H280: Resistenza caratteristica totale | K280: Rk,tot | L280: =$L$278*$L$275 -> 10.79230345 | M280: kN
A281: Resistenza finale | D281: Rd,tot | E281: =$L$40*E280/L266 -> 1.505061194 | F281: kN | H281: Resistenza finale | K281: Rd,tot | L281: =$L$280*$L$40/$L$266 -> 5.755895175 | M281: kN
H285: =VLOOKUP('Caratteristiche Materiali'!$B$52,'Caratteristiche Materiali'!$B$49:$K$51,8) -> 

Sheet Relazione
A7: RELAZIONE DI CALCOLO : VERIFICA DI SOLAI MISTI LEGNO-CLS CON CONNETTORI "T-CON"
A9: Cantiere: | D9: =Analisi!B9 -> 0 | M9: Data: | N9: =TODAY() -> 2018-12-21
A10: Posizione solaio: | D10: =Analisi!J9 -> C1 | M10: ID interno:
E13: Caratteristiche della connessione: Connettore | J13: =VLOOKUP('Caratteristiche Materiali'!B60,'Caratteristiche Materiali'!B58:C59,2) -> T-CON 8.0x205
E14: Resistenza caratt. allo snervamento: | I14: fy,k = | J14: 900 | K14: N/mm2
E15: Momento caratt. di snervamento: | I15: My,k = | J15: =Analisi!L263 -> 22600 | K15: Nmm
E16: Lunghezza totale del connettore: | I16: Ltot = | J16: =VLOOKUP('Caratteristiche Materiali'!B60,'Caratteristiche Materiali'!B58:E59,4) -> 208.85 | K16: mm
E17: Diametro del connettore: | I17: d = | J17: =VLOOKUP('Caratteristiche Materiali'!B60,'Caratteristiche Materiali'!B58:E59,3) -> 8 | K17: mm
E18: Lunghezza parte filettata nel legno: | I18: Lwood = | J18: =Analisi!L47 -> 115.7157288 | K18: mm
E19: Lunghezza efficace della vite: | I19: Lef = | J19: =Analisi!L259 -> 100 | K19: mm
E20: Lunghezza del tratto nel calstruzzo: | I20: Lcls = | J20: =Analisi!L46 -> 64.85 | K20: mm
E21: Inclinazione connettore: | I21: a = | J21: =VLOOKUP(Prescrizioni!B67,Prescrizioni!B65:C66,2) -> 45 | K21: °
E23: Resistenza per solai in semplice orditura con | J23: =IF(Analisi!E23=0,"tavolato interrotto","tavolato continuo") -> tavolato continuo
E24: Resist. di progetto singolo connettore | I24: Rd,1 = | J24: =IF(Prescrizioni!B67=1,Analisi!L275,Analisi!E275)*M97/F36 -> 5.755895175 | K24: kN
E25: Rigidezza connettore allo SLE: | I25: Kser = | J25: =Analisi!E44 -> 9000 | K25: N/mm
E26: Rigidezza connettore allo SLU: | I26: Ku = | J26: =Analisi!E45 -> 6000 | K26: N/mm
E27: Numero connettori in una sezione | I27: nc = | J27: =Analisi!E46 -> 1 | K27: -
A30: 1 Normativa di riferimento: | E30: =Analisi!K10 -> D.M. 17.01.2018 - Colonna "A" | H30: + | I30: Certificati ETA 12/0373 e Z-9.1-845
A32: Coefficiente carichi permanente: | E32: gG = | F32: =Analisi!$L$35 -> 1.3
A33: Coefficiente carichi variabili: | E33: gQ = | F33: =Analisi!$L$36 -> 1.5
A34: Coefficiente di sicurezza legname: | E34: gM,L = | F34: =Analisi!$L$55 -> 1.45
A35: Coefficiente di sicurezza cls: | E35: gM,cls = | F35: =Analisi!$L$60 -> 1.5
A36: Coefficiente di sicurezza giunzioni: | E36: gM,U = | F36: =Analisi!$L$266 -> 1.5
A37: Coefficiente di sicurezza acciaio: | E37: gM,S = | F37: =Analisi!$L$65 -> 1.15
A39: 2 Dati di progetto:
B41: 2.1 Caratteristiche geometriche:
B43: Spessore della soletta: | E43: h1 = | F43: =Analisi!E21 -> 60 | G43: mm
B44: Spessore dell'isolante(se presente): | E44: hiso = | F44: =Analisi!E143 -> 0 | G44: mm
B45: =IF('Caratteristiche Materiali'!B81<=5,"Spessore assito:","Spessore strato interposto:") -> Spessore assito: | E45: tS = | F45: =Analisi!E23 -> 20 | G45: mm
B46: Base della sezione lignea: | E46: b2 = | F46: =Analisi!E24 -> 160 | G46: mm
B47: Altezza della sezione lignea: | E47: h2 = | F47: =Analisi!E25 -> 240 | G47: mm
B48: Interassi travi in legno: | E48: i = b1 = | F48: =Analisi!L13 -> 650 | G48: mm
B49: Inclinazione della struttura: | E49: pendenza = | F49: =VLOOKUP(Prescrizioni!B187,Prescrizioni!B86:F186,2) -> 0 | G49: %
B50: Luce di calcolo: | E50: Lcalcolo = | F50: =Analisi!E17 -> 4882.5 | G50: mm
B51: Diametro dei connettori: | E51: d = | F51: =Analisi!E260 -> 8 | G51: mm
B52: Passo minimo dei connettori: | E52: smin = | F52: =Analisi!E47 -> 130 | G52: mm
B53: Passo massimo dei connettori: | E53: smax = | F53: =Analisi!E48 -> 330 | G53: mm
B54: Passo equivalente: | E54: seq = | F54: =Analisi!E93 -> 180 | G54: mm
N55: Ø
B56: 2.2 Caratteristiche dei materiali
B58: Legno: | E58: =VLOOKUP('Caratteristiche Materiali'!B33,'Caratteristiche Materiali'!B5:O32,2) -> GL24h | I58: Calcestruzzo: | L58: =VLOOKUP('Caratteristiche Materiali'!B52,'Caratteristiche Materiali'!B42:H51,2) -> C25/30
B60: Resistenza caratt. a flessione: | E60: fm,k = | F60: =Analisi!E52 -> 24 | G60: N/mm2 | I60: Resistenza caratt. a compressione: | L60: fc,k = | M60: =Analisi!E58 -> 25 | N60: N/mm2
B61: Resistenza caratt. a trazione: | E61: ft,0,k = | F61: =Analisi!E53 -> 19.2 | G61: N/mm2 | I61: Resistenza caratt. a trazione: | L61: ft,k = | M61: =Analisi!E59 -> 1.795474744 | N61: N/mm2
B62: Resistenza caratt. a taglio: | E62: fV,k = | F62: =Analisi!E54 -> 3.5 | G62: N/mm2 | I62: Modulo elastico: | L62: Ecm = E1 = | M62: =Analisi!E60 -> 31447.16144 | N62: N/mm2
B63: Modulo elastico // alle fibre: | E63: E0 = E2 = | F63: =Analisi!E55 -> 11500 | G63: N/mm2 | I63: Coeff. di viscosità a t=¥: | L63: f = | M63: =Analisi!E61 -> 2 | N63: -
B64: Massa volumica caratteristica: | E64: rg,k = | F64: =VLOOKUP('Caratteristiche Materiali'!B33,'Caratteristiche Materiali'!B5:O32,13) -> 385 | G64: kg/m3 | I64: Massa volumica caratteristica: | L64: rCLS = | M64: =100*'Caratteristiche Materiali'!H42 -> 2500 | N64: kg/m3
B66: =IF('Caratteristiche Materiali'!B81>4,"Strato interposto:","Tavolato:") -> Tavolato: | E66: =IF('Caratteristiche Materiali'!B81='Caratteristiche Materiali'!B70,"Interrotte",IF(Analisi!E23=0,"Non presente / Interrotto",VLOOKUP('Caratteristiche Materiali'!B81,'Caratteristiche Materiali'!B65:F80,2))) -> Legno di Conifera C24 | I66: Rete elettrosaldata: | L66: Æ | M66: =VLOOKUP('Caratteristiche Materiali'!O48,'Caratteristiche Materiali'!O42:R47,2) -> 6 mm/20x20
B68: Massa volumica caratteristica: | E68: rg,k = | F68: =VLOOKUP('Caratteristiche Materiali'!B81,'Caratteristiche Materiali'!B65:F80,3) -> 550 | G68: kg/m3 | I68: Resistenza caratt.(Acciaio. B450C): | L68: fy,k | M68: 450 | N68: N/mm2
B70: Armatura cordolo intradosso calcestruzzo se presente isolante: | I70: =IF('Caratteristiche Materiali'!V15=1,"ARMATURA NON NECESSARIA,",CONCATENATE("n° ",(VLOOKUP('Caratteristiche Materiali'!V15,'Caratteristiche Materiali'!V12:W14,2))," ",N55," ", (VLOOKUP('Caratteristiche Materiali'!V9,'Caratteristiche Materiali'!V5:X8,2)))) -> ARMATURA NON NECESSARIA, | L70: =IF('Caratteristiche Materiali'!V15='Caratteristiche Materiali'!V12,"ISOLANTE NON PRESENTE","") -> ISOLANTE NON PRESENTE
I71: Resistenza caratt.(Acciaio. B450C): | L71: fy,k | M71: =IF(F44=0,"-",450) -> - | N71: N/mm2
A72: =CONCATENATE('SOFTWARE T-CON'!$A11,'SOFTWARE T-CON'!$Y17,'SOFTWARE T-CON'!$C11) -> Tecnico: Ufficio Tecnico | G72: =Analisi!E196 -> Versione 2.8.2 | N72: Pagina 1/3
B80: 2.3 Carichi e combinazione delle azioni
B82: =IF('SOFTWARE T-CON'!K36=2,"","Peso specifico di travi in legno e del tavolato usati solamente per calcolare il peso proprio:") -> Peso specifico di travi in legno e del tavolato usati solamente per calcolare il peso proprio: | L82: rL = rS = | M82: =IF('SOFTWARE T-CON'!K36=2,"",5.5) -> 5.5 | N82: kN/m3
B83: Totale dei carichi permamenti strutturali: | F83: =IF('SOFTWARE T-CON'!K36=2,"","=") -> = | G83: (rL x b2 x h2)/i + (rS x tS) + (rCLS x h1) | K83: =IF('SOFTWARE T-CON'!K36=2,"","=") -> = | L83: G1,k = | M83: =Analisi!E29+Analisi!E28/(Analisi!L13/1000) -> 1.934923077 | N83: kN/m2
B84: Totale dei carichi permamenti non strutturali: | F84: = | G84: Tramezze, sottofondi,tavelle, ... | K84: = | L84: G2,k = | M84: =Analisi!E30 -> 2.5 | N84: kN/m2
B85: Totale dei carichi permamenti: | L85: Gtot,k = | M85: =SUM(M83:M84) -> 4.434923077 | N85: kN/m2
B86: Totale carichi variabili: | F86: = | G86: =VLOOKUP(Prescrizioni!B32,Prescrizioni!B24:G30,2) -> Cat. A: Amb. ad uso residenziale | K86: = | L86: Qk = | M86: =Analisi!E33 -> 2 | N86: kN/m2
B87: Carico variabile concentrato (se presente): | L87: Pk = | M87: ='SOFTWARE T-CON'!L12 -> 0 | N87: kN
B89: 2.3.1 Combinazioni di carico:
B91: N.B.: E' necessario considerare la condizione di carico più gravosa per la verifica flessionale.
B92: Nome della combinazione più gravosa: | L92: =IF(Analisi!$E$35>Analisi!$E$36,"SOLO PERMANENTI","PERMANENTI + ACCIDENTALI") -> PERMANENTI + ACCIDENTALI
B93: Carico distribuito agente sulla trave: | L93: q = | M93: =IF(Analisi!$E$35>Analisi!$E$36,Analisi!$E$35,Analisi!$E$36) -> 6.02251 | N93: kN/m
B94: Momento massimo in campata agente sulla trave: | L94: MEd = | M94: =Analisi!$E$75 -> 17.94618113 | N94: kN
B95: Taglio massimo all'appoggio: | L95: VEd = | M95: =Analisi!$E$80 -> 14.70245254 | N95: kN
B96: Coefficiente di deformabilità differita: | L96: kdef = | M96: =Analisi!$L$38 -> 0.6 | N96: -
B97: Coefficiente di resistenza differita: | L97: kmod = | M97: =Analisi!$L$40 -> 0.8 | N97: -
A99: 3 Verifche di resistenza:
D101: VERIFICHE A TEMPO t = 0
B103: CLS: | D103: Verifica tensione normale al lembo superiore compresso: | J103: s1,C = | K103: =Analisi!E98 -> 5.049868627 | L103: =IF(K103<M103,"<",IF(K103=M103,"=",">")) -> < | M103: =Analisi!L58 -> 14.16666667 | N103: N/mm2
D104: Verifica tensione normale al lembo inferiore teso: | J104: s1,T = | K104: =Analisi!E99 -> 2.730614148 | L104: =IF(K104<M104,"<",IF(K104=M104,"=",">")) -> > | M104: =Analisi!L59 -> 1.196983163 | N104: N/mm2
K105: =IF(K104>M104,"ARMATURA NECESSARIA","CLS TESO OK") -> ARMATURA NECESSARIA
B107: ARMATURA SOLETTA: | D107: =IF(K104>M104,"Per la verifica dell'armatura della soletta si rimanda al foglio VERIFICA ARMATURA","Armatura minima per la ripartizione dei carichi") -> Per la verifica dell'armatura della soletta si rimanda al foglio VERIFICA ARMATURA
B109: LEGNO: | D109: Verifica a tensoflessione: | J109: h = | K109: =Analisi!E103 -> 0.540934268 | L109: < | M109: =Analisi!I103 -> 1 | N109: -
D110: Verifica delle tensioni tangenziali: | J110: t2,max = | K110: =Analisi!E105 -> 0.4074852974 | L110: < | M110: =Analisi!L54 -> 1.931034483 | N110: N/mm2
B112: CONNETTORE: | D112: Resistenza di progetto totale = | G112: nef x Rd,conn,1 | I112: = | L112: Rd,tot = | M112: =Analisi!I107 -> 5.755895175 | N112: kN
D113: Numero di connettori efficace: | L113: nef = | M113: =IF(Prescrizioni!B67=1,Analisi!L278,Analisi!E278) -> 1 | N113: -
D115: Forza sul connettore: | J115: Fconn = | K115: =Analisi!E107 -> 4.816639103 | L115: =IF(K115<M115,"<",IF(K115=M115,"=",">")) -> < | M115: =Analisi!I107 -> 5.755895175 | N115: kN
D118: VERIFICHE A TEMPO t = ¥
B120: CLS: | D120: Verifica tensione normale al lembo superiore compresso: | J120: s1,C = | K120: =Analisi!E111 -> 3.380491518 | L120: =IF(K120<M120,"<",IF(K120=M120,"=",">")) -> < | M120: =Analisi!L58 -> 14.16666667 | N120: N/mm2
D121: Verifica tensione normale al lembo inferiore teso: | J121: s1,T = | K121: =Analisi!E112 -> 1.026015467 | L121: =IF(K121<M121,"<",IF(K121=M121,"=",">")) -> < | M121: =Analisi!L59 -> 1.196983163 | N121: N/mm2
K122: =IF(K121>M121,"ARMATURA NECESSARIA","CLS TESO OK") -> CLS TESO OK
B124: ARMATURA SOLETTA: | D124: =IF(K121>M121,"Per la verifica dell'armatura della soletta si rimanda al foglio VERIFICA ARMATURA","Armatura minima per la ripartizione dei carichi") -> Armatura minima per la ripartizione dei carichi
B126: LEGNO: | D126: Verifica a tensoflessione: | J126: h = | K126: =Analisi!E116 -> 0.5692303312 | L126: < | M126: =Analisi!I103 -> 1 | N126: -
D127: Verifica delle tensioni tangenziali: | J127: t2,max = | K127: =Analisi!E118 -> 0.4262088105 | L127: < | M127: =Analisi!L54 -> 1.931034483 | N127: N/mm2
B129: CONNETTORE: | D129: Resistenza di progetto totale = | G129: nef x Rd,conn,1 | I129: = | L129: Rd,tot = | M129: =Analisi!I107 -> 5.755895175 | N129: kN
D130: Numero di connettori efficace: | L130: nef = | M130: =IF(Prescrizioni!B67=1,Analisi!L278,Analisi!E278) -> 1 | N130: -
D132: Forza sul connettore: | J132: Fconn = | K132: =Analisi!E120 -> 4.889787437 | L132: =IF(K132<M132,"<",IF(K132=M132,"=",">")) -> < | M132: =Analisi!I107 -> 5.755895175 | N132: kN
A135: 4 Verifiche di deformazione:
D137: VERIFICHE A TEMPO t = 0
D139: Destinazione d'uso, tipologia di carico in esercizio: | L139: =VLOOKUP(Prescrizioni!B32,Prescrizioni!B24:G30,2) -> Cat. A: Amb. ad uso residenziale
D140: Coefficiente di combinazione quasi permanente: | L140: y21 = | M140: =VLOOKUP(Prescrizioni!B32,Prescrizioni!B24:G30,6) -> 0.3 | N140: -
D141: Freccia totale istantanea in combinazione Q.P.: | I141: = | J141: ug,ist + y21 x uq,ist = | L141: utot,ist = | M141: =Analisi!E126 -> 5.294209677 | N141: mm
D142: Limite di freccia = L / | F142: ='SOFTWARE T-CON'!E20 -> 400 | L142: L / | M142: =Analisi!E127 -> 922 | N142: -
D144: VERIFICHE A TEMPO t = ¥
D146: Coefficiente di combinazione quasi permanente: | L146: y21 = | M146: =VLOOKUP(Prescrizioni!B32,Prescrizioni!B24:G30,6) -> 0.3 | N146: -
D147: Freccia totale istantanea in combinazione Q.P.: | I147: = | J147: ug,ist + y21 x uq,ist = | L147: utot,ist = | M147: =Analisi!L126 -> 9.049945237 | N147: mm
D148: Limite di freccia = L / | F148: ='SOFTWARE T-CON'!E21 -> 300 | L148: L / | M148: =Analisi!L127 -> 539 | N148: -
A151: =CONCATENATE('SOFTWARE T-CON'!$A$11,'SOFTWARE T-CON'!$Y$17,'SOFTWARE T-CON'!$C$11) -> Tecnico: Ufficio Tecnico | G151: =Analisi!E196 -> Versione 2.8.2 | N151: Pagina 2/3
A159: 5 Risultati della progettazione:
B161: Superficie totale solaio: | L161: Atot = | M161: =IF('SOFTWARE T-CON'!E18="-","-",Analisi!E82) -> - | N161: m2
B162: Numero di connettori per trave: | L162: nc,trave = | M162: =Analisi!E83 -> 26 | N162: -
L163: = | M163: =M162/Analisi!E46 -> 26 | N163: =IF(Analisi!E46=1,"-",IF(Analisi!E46=2,"coppie","terne")) -> -
B164: Numero di connettori totale: | L164: nc,totale = | M164: =IF('SOFTWARE T-CON'!E18="-",M162,Analisi!L83) -> 26 | N164: -
B165: Incidenza al metro quadro: | L165: incidenza = | M165: =IF('SOFTWARE T-CON'!E18="-","-",Analisi!L84) -> - | N165: conn/m2
B166: Distanza dei connettori di estremità dal bordo della trave in legno: | L166: a3 = | M166: =Analisi!E85 -> 116.25 | N166: mm
B167: =IF(Analisi!E47=Analisi!E48,"","Scarto tra i connettori a passo minimo e quelli a passo massimo:") -> Scarto tra i connettori a passo minimo e quelli a passo massimo: | L167: =IF(Analisi!E47=Analisi!E48,"","scarto =") -> scarto = | M167: =IF(Analisi!E47=Analisi!E48,"",Foglio1!I12) -> 130 | N167: =IF(Analisi!E47=Analisi!E48,"","mm") -> mm
A169: 6 Diagramma per la disposizione dei connettori
E171: Luce di calcolo delle travi | H171: = | I171: =Analisi!E17 -> 4882.5 | J171: mm
E172: Numero totale dei connettori | H172: = | I172: =M162 -> 26
D173: =IF(Analisi!E47=Analisi!E48,"",Analisi!Q85) -> 9 | E173: =IF(Analisi!E47=Analisi!E48,"",IF($N$163="-","Connettori a passo",IF($N$163="coppie","Coppie a passo","Terne a passo"))) -> Connettori a passo | G173: =IF(Analisi!E47=Analisi!E48,"",Analisi!E47) -> 130 | H173: =IF(Analisi!E47=Analisi!E48,"","mm") -> mm | I173: =IF(Analisi!E47=Analisi!E48,""," nel primo 25% di trave") -> nel primo 25% di trave
D174: =Analisi!Q84 -> 8 | E174: =IF($N$163="-","Connettori a passo",IF($N$163="coppie","Coppie a passo","Terne a passo")) -> Connettori a passo | G174: =Analisi!E48 -> 330 | H174: mm | I174: =IF(Analisi!E47=Analisi!E48," lungo tutta la trave"," nel tratto centrale di trave") -> nel tratto centrale di trave
D175: =D173 -> 9 | E175: =E173 -> Connettori a passo | G175: =G173 -> 130 | H175: =H173 -> mm | I175: =I173 -> nel primo 25% di trave
A190: 7 Avvertenze:
B192: 7.1 FASE DI GETTO
B194: • Puntellare efficacemente il solaio prima del getto e mantenere i puntelli fino a completa maturazione del calcestruzzo.
B196: 7.2 ARMATURA DELLA SOLETTA
B198: • L'armatura della soletta dovrà essere realizzata con rete elettrosaldata come specificato;
B199: • Sovrappore i fogli di rete elettrosaldata di almeno una maglia;
B200: • Tenere l'armatura sollevata dal piano durante la fase di getto;
B201: • Copriferro per l'armatura: s = | E201: =Analisi!E65 -> 30 | F201: mm
B203: 7.3 ARMATURA PERIMETRALE
B205: • Si consiglia di collegare la futura soletta alle murature perimetrali alloggiando in esse un'armatura tipo "coda di rondine" calcolata a cura del Vostro responsabile delle strutture.
B208: 7.4 CONNETTORI
B210: • Per la posa in opera dei connettori non è necessario eseguire il preforo;
B211: • Il posizionamento degli elementi di connessione dovrà essere effettuato come da disposizioni della Direzione Lavori.
B213: 7.5 STRUTTURA LIGNEA
B215: • Eventuale verifica a compressione ortogonale alle fibre all'appoggio è da svolgersi separtamente.
A217: 8 Disclaimer:
B219: La presente relazione di calcolo è stata redatta in conformità alle normative vigenti alla data della stessa.
B220: La presente relazione di calcolo non costituisce documento esecutivo ed è redatta al solo fine indicativo sulla base di dati forniti. La presente dovrà essere sempre conformata dal Vs. tecnico responsabile delle strutture o da tecnico abilitato.
B222: I calcoli qui riportati dovranno essere IN OGNI CASO controllati e approvati dal Vostro tecnico responsabile delle strutture.
B223: La società Roofrox Srl declina ogni responsabilità per utilizzi impropri del presente software di calcolo.
B224: Il presente foglio non può essere modificato e/o distributo in alcun modo senza il consenso scritto di RoofRox Srl.
A225: =CONCATENATE('SOFTWARE T-CON'!$A$11,'SOFTWARE T-CON'!$Y$17,'SOFTWARE T-CON'!$C$11) -> Tecnico: Ufficio Tecnico | G225: =Analisi!E196 -> Versione 2.8.2 | N225: Pagina 3/3

Sheet Verifica Armatura
A7: RELAZIONE DI CALCOLO : VERIFICA ARMATURE DI RIPARTIZIONE NELLA SOLETTA IN CLS E ARMATURA DEL CORDOLO SOLAI MISTI LEGNO-CLS CON CONNETTORI "T-CON"
A9: Cantiere: | D9: =Analisi!B9 -> 0 | L9: Data: | M9: =TODAY() -> 2018-12-21
A10: Posizione solaio: | D10: =Analisi!J9 -> C1 | L10: ID interno:
A12: 1 Riepilogo valori impiegati:
A14: Spessore della soletta: | K14: h1 = | L14: =Analisi!E21 -> 60 | M14: mm
A15: Interassi travi in legno: | K15: i = b1 = | L15: =Analisi!L13 -> 650 | M15: mm
A16: Interasse collaborante: | K16: ic = | L16: ='SOFTWARE T-CON'!E25 -> 650 | M16: mm
A17: Coefficiente di resistenza differita del legno: | K17: kmod = | L17: =Analisi!$L$40 -> 0.8 | M17: -
A18: Resistenza caratteristica acciaio B450C: | K18: fy,k | L18: 450 | M18: N/mm2
A19: Resistenza caratteristica a compressione cilindrica cls: | K19: fc,k = | L19: =Analisi!E58 -> 25 | M19: N/mm2
A20: Resistenza caratteristica a trazione cls: | K20: ft,k = | L20: =Analisi!E59 -> 1.795474744 | M20: N/mm2
A21: Coefficiente di sicurezza cls: | K21: gM,cls = | L21: =Analisi!$L$60 -> 1.5 | M21: -
A22: Coefficiente di sicurezza acciaio: | K22: gM,S = | L22: =Analisi!$L$65 -> 1.15 | M22: -
A24: 2 Armatura Longitudinale - Rete elettrosaldata intradosso soletta di cls - t=0:
A26: Tensione massima per flessione intradosso soletta/estradosso isolante: | K26: sm,1 - sol/iso = | L26: =Analisi!E140 -> 3.890241387 | M26: N/mm2
A27: Tensione massima di trazione intradosso soletta/estradosso isolante: | K27: s1 - sol/iso = | L27: =Analisi!E141 -> 2.730614148 | M27: N/mm2
A28: Asse neutro tensioni nel cls: | K28: x = yG,CLS = | L28: =Analisi!E142 -> 30 | M28: mm
A29: Altezza isolante: | K29: hisolante = | L29: =Analisi!E143 -> 0 | M29: mm
A30: Altezza cls teso in soletta: | K30: x - hisolante = | L30: =Analisi!E144 -> 30 | M30: mm
A31: Trazione massima assorbita dalla rete elettrosaldata: | K31: Ft,l = | L31: =Analisi!E145 -> 26623.48794 | M31: N
A32: Area minima di acciaio: | K32: Amin = | L32: =Analisi!L140 -> 68.03780251 | M32: mm2
A33: Maglia della rete elettrosaldata - Passo tondi: | K33: P.T. = | L33: =Analisi!L141 -> 200 | M33: mm
A34: Numero tondi nell'interasse collaborante della rete elettrosaldata: | K34: Nt = | L34: =Analisi!L142 -> 3.25 | M34: -
A35: Area di una barra della rete elettrosaldata: | K35: As,d = | L35: =Analisi!L143 -> 28.27433388 | M35: mm2
A36: Rete disposta: | K36: As,d = | L36: =Analisi!L144 -> 91.89158512 | M36: mm2
K37: =IF(L31<=0,"ARMATURA NON NECESSARIA",IF(L36>=L32,"VERIFICATO","ARMATURA NON SUFFICIENTE")) -> VERIFICATO
A38: 3 Armatura Longitudinale - Armatura cordolo intradosso cls nel caso di isolante - t=0:
A40: Tensione massima di trazione intradosso soletta/estradosso isolante: | K40: s1,T = | L40: =IF(L29=0,"-",Analisi!E147) -> - | M40: N/mm2
A41: Larghezza cordolo in calcestruzzo: | K41: Biso = | L41: =IF(L29=0,"-",Analisi!E148) -> - | M41: N/mm2
A42: Area minima di acciaio: | K42: Amin,l = | L42: =IF(L29=0,"-",Analisi!L147) -> - | M42: mm
A43: Area di progetto impiegata: | K43: As,c,d = | L43: =Analisi!L148 -> 0 | M43: mm
K44: =Analisi!K149 -> ARMATURA NON NECESSARIA
A45: 4 Armatura Longitudinale - Rete elettrosaldata intradosso soletta di cls - t=¥:
A47: Tensione massima per flessione intradosso soletta/estradosso isolante: | K47: sm,1 - sol/iso = | L47: =Analisi!E151 -> 2.203253493 | M47: N/mm2
A48: Tensione massima di trazione intradosso soletta/estradosso isolante: | K48: s1 - sol/iso = | L48: =Analisi!E152 -> 1.026015467 | M48: N/mm2
A49: Asse neutro tensioni nel cls: | K49: x = yG,CLS = | L49: =Analisi!E153 -> 30 | M49: mm
A50: Altezza isolante: | K50: hisolante = | L50: =Analisi!E154 -> 0 | M50: mm
A51: Altezza cls teso in soletta: | K51: x - hisolante = | L51: =Analisi!E155 -> 30 | M51: mm
A52: Trazione massima assorbita dalla rete elettrosaldata: | K52: Ft,l = | L52: =Analisi!E156 -> 10003.6508 | M52: N
A53: Area minima di acciaio: | K53: Amin = | L53: =Analisi!L151 -> 25.56488538 | M53: mm2
A54: Maglia della rete elettrosaldata - Passo tondi: | K54: P.T. = | L54: =Analisi!L152 -> 200 | M54: mm
A55: Numero tondi nell'interasse collaborante della rete elettrosaldata: | K55: Nt = | L55: =Analisi!L153 -> 3.25 | M55: -
A56: Area di una barra della rete elettrosaldata: | K56: As,d = | L56: =Analisi!L154 -> 28.27433388 | M56: mm2
A57: Rete disposta: | K57: As,d = | L57: =Analisi!L155 -> 91.89158512 | M57: mm2
K58: =IF(L52<=0,"ARMATURA NON NECESSARIA",IF(L57>=L53,"VERIFICATO","ARMATURA NON SUFFICIENTE")) -> VERIFICATO
A59: 5 Armatura Longitudinale - Armatura cordolo intradosso cls nel caso di isolante - t=¥:
A61: Tensione massima di trazione intradosso soletta/estradosso isolante: | K61: s1,T = | L61: =IF(L50=0,"-",Analisi!E158) -> - | M61: N/mm2
A62: Larghezza cordolo in calcestruzzo: | K62: Biso = | L62: =IF(L50=0,"-",Analisi!E159) -> - | M62: N/mm2
A63: Area minima di acciaio: | K63: Amin,l = | L63: =IF(L50=0,"-",Analisi!L158) -> - | M63: mm
A64: Area di progetto impiegata: | K64: As,c,d = | L64: =Analisi!L159 -> 0 | M64: mm
K65: =Analisi!K160 -> ARMATURA NON NECESSARIA
A66: NOTE: E' buona norma eseguire anche un controllo sulla armatura trasversale, nonché un controllo sulla resistenza a scorrimento della soletta. I calcoli qui riportati dovranno essere IN OGNI CASO controllati e approvati dal Vostro tecnico responsabile delle strutture. La presente relazione di calcolo non costituisce documento esecutivo, è redatta al solo fine indicativo sulla base di dati forniti. La presente dovrà essere sempre conformata dal Vs. tecnico responsabile delle strutture o da tecnico abilitato. La società Roofrox Srl declina ogni responsabilità per utilizzi impropri del presente software di calcolo. Il presente foglio non può essere modificato e/o distributo in alcun modo senza il consenso scritto di RoofRox Srl.
A70: =CONCATENATE('SOFTWARE T-CON'!$A11,'SOFTWARE T-CON'!$Y17,'SOFTWARE T-CON'!$C11) -> Tecnico: Ufficio Tecnico | G70: =Analisi!E196 -> Versione 2.8.2 | M70: Pagina 1/1
A74: 2 Armatura Trasversale - Rispetto minimo EC4 - par. 6.6.4.1:
A76: Armatura trasversale in soletta: | K76: As > 0,002·ssoletta·(1000 mm) = | L76: =2/1000*L14*1000 -> 120 | M76: mm2/m
A77: Rete disposta: | I77: Æ | J77: =CONCATENATE(VLOOKUP('Caratteristiche Materiali'!O48,'Caratteristiche Materiali'!O42:R47,2)," ","As=") -> 6 mm/20x20 As= | L77: =VLOOKUP('Caratteristiche Materiali'!O48,'Caratteristiche Materiali'!O42:R47,4) -> 141.3716694 | M77: mm2/m
K78: =IF(L76<=L77,"VERIFICATO","NON VERIFICATO") -> VERIFICATO
A81: 3 Armatura Trasversale - Resistenza a scorrimento cls EC4 - par. 6.6.2
A83: Superficie di scorrimento soletta | K83: Acv = 2·s·1000mm = | L83: =2*L14*1000 -> 120000 | M83: mm2
A84: Resistenza a scorrimento del calcestruzzo: | K84: tRd = 0,25·fctk 0,05/gc = | L84: =0.25*L20/L21 -> 0.2992457907 | M84: N/mm2
A85: Coefficiente impiegato nel calcolo per cls del tipo "non alleggerito": | K85: h= | L85: 1 | M85: -
A86: Area barre di armatura che attraversano la superficie di scorrimento: | K86: Ae = 2·As = | L86: =2*L77 -> 282.7433388 | M86: mm2
A87: Resistenza convenzionale delle bielle di calcestruzzo: | K87: VRd2 = 0,2·Acv·h·fck/gc = | L87: =0.2*L83*L85*L19/L21 -> 400000 | M87: N/m
A88: Resistenza della sezione longitudinale con armatura a taglio: | K88: VRd3 = 2,5·Acv·h·tRd + Ae·fyk/gs = | L88: =(2.5*L83*L85*L84)+(L86*L18/L22) -> 200412.435 | M88: N/m
A89: Resistenza assunta | K89: VRd = min[VRd2;VRd3] = | L89: =MIN(L87:L88) -> 200412.435 | M89: N/m
A90: Interasse minimo connettori: | K90: smin = | L90: =Analisi!E47 -> 130 | M90: mm
A91: =IF(Analisi!E46=1,"Numero di connettori nel primo metro dagli appoggi:",IF(Analisi!E46=2,"Numero di coppie di connettori nel primo metro dagli appoggi:","Numero di terne di connettori nel primo metro dagli appoggi:")) -> Numero di connettori nel primo metro dagli appoggi: | K91: Nc =1metro/smin = | L91: =1000/L90 -> 7.692307692 | M91: -
A92: Scorrimento massimo nella soletta trasferito dai connettori (nel primo metro dagli appoggi): | K92: VSd,max = Fconn/smin = | L92: =(MAX(Analisi!E107,Analisi!E120))*L91*1000 -> 37613.74952 | M92: N/m
K93: =IF(L92<=L89,"VERIFICATO","NON VERIFICATO") -> VERIFICATO
A143: =CONCATENATE('SOFTWARE T-CON'!$A$11,'SOFTWARE T-CON'!$Y$17,'SOFTWARE T-CON'!$C$11) -> Tecnico: Ufficio Tecnico | G143: Versione 1.0.7 | M143: Pagina 2/3
A217: =CONCATENATE('SOFTWARE T-CON'!$A$11,'SOFTWARE T-CON'!$Y$17,'SOFTWARE T-CON'!$C$11) -> Tecnico: Ufficio Tecnico | G217: Versione 1.0.7 | M217: Pagina 3/3

Sheet Note
B3: DATI RIPORTATI NEL TESTO: "Strutture in Legno" - Materiale, calcolo e preogetto secondo le nuove normative europee -
B4: Maurizio Piazza; Roberto Tomasi; Roberto Modena - Editore: HOEPLI
B7: CARICHI DI DURATA PERMANENTE | F7: pesi propri e carichi non rimovibili (durante la vita della struttura)
B9: CARICHI DI LUNGA DURATA | F9: carichi permanenti suscettibili di cambiamenti (durante il normale esercizio della struttura)
F10: sovraccarichi variabili relativi a magazzini e depositi.
B12: CARICHI DI MEDIA DURATA | F12: i sovraccarichi variabili (esercizio sui solai e neve sulle coperture)
B14: CARICHI DI DURATA ISTANTANEA | F14: azioni del vento e le azioni eccezionali
B18: Classi di durata del carico | F18: Durata del carico caratteristico
B20: Permanente | F20: più di 10 anni
B21: Lunga durata | F21: da 6 mesi a 10 anni
B22: Media durata | F22: da 1 settimana a 6 mesi
B23: Breve durata | F23: meno di 1 settimana
B24: Istantaneo | F24: -
B27: CLASSE DI SERVIZIO 1 | E27: è caratterizzata da un'umidità del materiale in equilibrio con ambiente a una temperatura di 20° C e un'umidità relativa dell'aria circostante che superi
E28: il 65% se non per poche settimane all'anno. Possono appartenenere a tale classe gli elementi lignei protetti contro le intemperie come quelli posti
E29: all'interno degli edifici in ambienti condizionati.
B31: CLASSE DI SERVIZIO 2 | E31: è caratterizzata da un'umidità dei materiali in equilibrio con ambiente a una temperatura di 20° C e un'umidità relativa dell'aria circostante che superi l'85%
E32: solo per poche settimane all'anno. Possono appartenere a tale classe gli elementi lignei posti all'esterno degli edifici ma protetti, almeno parzialmente, dalle
E33: intemperie e dall'irraggiamento solare diretto.
B35: CLASSE DI SERVIZIO 3 | E35: condizioni climatiche che prevedono umidità più elevate di quelle della classe di servizio 2. Possono appartenere a tale classe gli elementi lignei posti
E36: all'esterno degli edifici direttamente esposti alle intemperie.
B40: Valore dei carichi di esercizio per le diverse categorie di edifici
B42: Azione | F42: Q | G42: y0,j | H42: y1,j | I42: y2,j
B43: Cat. A: Amb. ad uso residenziale | F43: 2 | G43: 0.7 | H43: 0.5 | I43: 0.3
B44: Cat. B: Uffici | F44: 2 | G44: 0.7 | H44: 0.5 | I44: 0.3
B45: Cat. C: Amb. suscettibili di affollamento | F45: 4 | G45: 0.7 | H45: 0.7 | I45: 0.6
B46: Cat. D: Amb. ad uso commerciale | F46: 5 | G46: 0.7 | H46: 0.7 | I46: 0.6
B47: Cat. E: Biblioteche, archivi, ... | F47: 6 | G47: 1 | H47: 0.9 | I47: 0.8
B48: Cat. H: Coperture | F48: 0.5 | G48: 0 | H48: 0 | I48: 0
B49: Neve (a quota < 1000 m) | F49: da valutare | G49: 0.5 | H49: 0.2 | I49: 0
B50: Neve (a quota > 1000 m) | F50: da valutare | G50: 0.7 | H50: 0.5 | I50: 0.2

Sheet Caratteristiche Materiali (hidden)
C2: Resistenze legno lamellare di conifera omogeneo e combinato (EN 1194: 1999) | W2: Barre d'armatura
D3: [N/mmq] | E3: [N/mmq] | F3: [N/mmq] | G3: [N/mmq] | H3: [N/mmq] | I3: [N/mmq] | J3: [N/mmq] | K3: [N/mmq] | L3: [N/mmq] | M3: [N/mmq] | N3: [kg/mc] | O3: [kg/mc]
B4: CONT | D4: fm,g,k | E4: ft,0,g,k | F4: ft,90,g,k | G4: fc,0,g,k | H4: fc,90,g,k | I4: fv,g,k | J4: E0,g,mean | K4: E0,g,05 | L4: E90,g,mean | M4: Gg,mean | N4: rg,k | O4: rm | V4: CONT | W4: fi | X4: A
B5: 1 | C5: GL20h | D5: 20 | E5: 16 | F5: 0.5 | G5: 20 | H5: 2.5 | I5: 3.5 | J5: 8400 | K5: 7000 | L5: 300 | M5: 650 | N5: 340 | O5: 370 | V5: 1 | W5: 10 | X5: =PI()*W5^2/4 -> 78.53981634
B6: =B5+1 -> 2 | C6: GL20c | D6: 20 | E6: 15 | F6: 0.5 | G6: 18.5 | H6: 2.5 | I6: 3.5 | J6: 10400 | K6: 8600 | L6: 300 | M6: 250 | N6: 355 | O6: 390 | V6: 2 | W6: 12 | X6: =PI()*W6^2/4 -> 113.0973355
B7: =B6+1 -> 3 | C7: GL22h | D7: 22 | E7: 17.6 | F7: 0.5 | G7: 22 | H7: 2.5 | I7: 3.5 | J7: 10500 | K7: 8800 | L7: 300 | M7: 650 | N7: 370 | O7: 410 | P7: uni en 14080:2013 | V7: 3 | W7: 14 | X7: =PI()*W7^2/4 -> 153.93804
B8: 4 | C8: GL22c | D8: 22 | E8: 16 | F8: 0.5 | G8: 20 | H8: 2.5 | I8: 3.5 | J8: 10400 | K8: 8600 | L8: 300 | M8: 650 | N8: 355 | O8: 390 | P8: uni en 14080:2013 | V8: 4 | W8: 16 | X8: =PI()*W8^2/4 -> 201.0619298
B9: 5 | C9: GL24h | D9: 24 | E9: 19.2 | F9: 0.5 | G9: 24 | H9: 2.5 | I9: 3.5 | J9: 11500 | K9: 9600 | L9: 300 | M9: 650 | N9: 385 | O9: 420 | P9: uni en 14080:2013 | V9: 2
B10: 6 | C10: GL24c | D10: 24 | E10: 17 | F10: 0.5 | G10: 21.5 | H10: 2.5 | I10: 3.5 | J10: 11000 | K10: 9100 | L10: 300 | M10: 650 | N10: 365 | O10: 400 | P10: uni en 14080:2013
B11: 7 | C11: GL26h | D11: 26 | E11: 20.8 | F11: 0.5 | G11: 26 | H11: 2.5 | I11: 3.5 | J11: 12100 | K11: 10100 | L11: 300 | M11: 650 | N11: 405 | O11: 445 | P11: uni en 14080:2013 | V11: CONT | W11: numeri
B12: 8 | C12: GL26c | D12: 26 | E12: 19 | F12: 0.5 | G12: 23.5 | H12: 2.5 | I12: 3.5 | J12: 12000 | K12: 10000 | L12: 300 | M12: 650 | N12: 385 | O12: 420 | P12: uni en 14080:2013 | V12: 1 | W12: 0
B13: 9 | C13: GL28h | D13: 28 | E13: 22.3 | F13: 0.5 | G13: 28 | H13: 2.5 | I13: 3.5 | J13: =12.6*1000 -> 12600 | K13: 10500 | L13: 300 | M13: 650 | N13: 425 | O13: 460 | P13: uni en 14080:2013 | V13: 2 | W13: 1
B14: 10 | C14: GL28c | D14: 28 | E14: 19.5 | F14: 0.5 | G14: 24 | H14: 2.5 | I14: 3.5 | J14: 12500 | K14: 10400 | L14: 300 | M14: 650 | N14: 390 | O14: 420 | P14: uni en 14080:2013 | V14: 3 | W14: 2
B15: 11 | C15: GL30h | D15: 30 | E15: 24 | F15: 0.5 | G15: 30 | H15: 2.5 | I15: 3.5 | J15: 13600 | K15: 11300 | L15: 300 | M15: 650 | N15: 430 | O15: 480 | P15: uni en 14080:2013 | V15: 1
B16: 12 | C16: GL30c | D16: 30 | E16: 19.5 | F16: 0.5 | G16: 24.5 | H16: 2.5 | I16: 3.5 | J16: 13000 | K16: 10800 | L16: 300 | M16: 650 | N16: 390 | O16: 430 | P16: uni en 14080:2013
B17: 13 | C17: GL32h | D17: 32 | E17: 25.6 | F17: 0.5 | G17: 32 | H17: 2.5 | I17: 3.5 | J17: 14200 | K17: 11800 | L17: 300 | M17: 650 | N17: 440 | O17: 490 | P17: uni en 14080:2013
B18: 14 | C18: GL32c | D18: 32 | E18: 19.5 | F18: 0.5 | G18: 24.5 | H18: 2.5 | I18: 3.5 | J18: 13700 | K18: 11200 | L18: 300 | M18: 650 | N18: 400 | O18: 440 | P18: uni en 14080:2013
B19: 15 | C19: C14 | D19: 14 | E19: 8 | F19: 0.4 | G19: 16 | H19: 2 | I19: 1.7 | J19: =7*1000 -> 7000 | K19: =4.7*1000 -> 4700 | L19: =0.23*1000 -> 230 | M19: =0.44*1000 -> 440 | N19: 290 | O19: 350 | P19: prEN 338: 2002
B20: 16 | C20: C16 | D20: 16 | E20: 10 | F20: 0.5 | G20: 17 | H20: 2.2 | I20: 1.8 | J20: =8*1000 -> 8000 | K20: =5.4*1000 -> 5400 | L20: =0.27*1000 -> 270 | M20: =0.5*1000 -> 500 | N20: 310 | O20: 370 | P20: prEN 338: 2002
B21: 17 | C21: C18 | D21: 18 | E21: 11 | F21: 0.5 | G21: 18 | H21: 2.2 | I21: 2 | J21: =9*1000 -> 9000 | K21: =6*1000 -> 6000 | L21: =0.3*1000 -> 300 | M21: =0.56*1000 -> 560 | N21: 320 | O21: 380 | P21: prEN 338: 2002
B22: 18 | C22: C20 | D22: 20 | E22: 12 | F22: 0.5 | G22: 19 | H22: 2.3 | I22: 2.2 | J22: =9.5*1000 -> 9500 | K22: =6.4*1000 -> 6400 | L22: =0.32*1000 -> 320 | M22: =0.59*1000 -> 590 | N22: 330 | O22: 390 | P22: prEN 338: 2002
B23: 19 | C23: C22 | D23: 22 | E23: 13 | F23: 0.5 | G23: 20 | H23: 2.4 | I23: 2.4 | J23: =10*1000 -> 10000 | K23: =6.7*1000 -> 6700 | L23: =0.33*1000 -> 330 | M23: =0.63*1000 -> 630 | N23: 340 | O23: 410 | P23: prEN 338: 2002
B24: 20 | C24: C24 | D24: 24 | E24: 14 | F24: 0.5 | G24: 21 | H24: 2.5 | I24: 2.5 | J24: =11*1000 -> 11000 | K24: =7.4*1000 -> 7400 | L24: =0.37*1000 -> 370 | M24: =0.69*1000 -> 690 | N24: 350 | O24: 420 | P24: prEN 338: 2002
B25: 21 | C25: C27 | D25: 27 | E25: 16 | F25: 0.6 | G25: 22 | H25: 2.6 | I25: 2.8 | J25: =11.5*1000 -> 11500 | K25: =7.7*1000 -> 7700 | L25: =0.38*1000 -> 380 | M25: =0.72*1000 -> 720 | N25: 370 | O25: 450 | P25: prEN 338: 2002
B26: 22 | C26: C30 | D26: 30 | E26: 18 | F26: 0.6 | G26: 23 | H26: 2.7 | I26: 3 | J26: =12*1000 -> 12000 | K26: =8*1000 -> 8000 | L26: =0.4*1000 -> 400 | M26: =0.75*1000 -> 750 | N26: 380 | O26: 460 | P26: prEN 338: 2002
B27: 23 | C27: C35 | D27: 35 | E27: 21 | F27: 0.6 | G27: 25 | H27: 2.8 | I27: 3.4 | J27: =13*1000 -> 13000 | K27: =8.7*1000 -> 8700 | L27: =0.43*1000 -> 430 | M27: =0.81*1000 -> 810 | N27: 400 | O27: 480 | P27: prEN 338: 2002
B28: 24 | C28: C40 | D28: 40 | E28: 24 | F28: 0.6 | G28: 26 | H28: 2.9 | I28: 3.8 | J28: =14*1000 -> 14000 | K28: =9.4*1000 -> 9400 | L28: =0.47*1000 -> 470 | M28: =0.88*1000 -> 880 | N28: 420 | O28: 500 | P28: prEN 338: 2002
B29: 25 | C29: C45 | D29: 45 | E29: 27 | F29: 0.6 | G29: 27 | H29: 3.1 | I29: 3.8 | J29: =15*1000 -> 15000 | K29: =10*1000 -> 10000 | L29: =0.5*1000 -> 500 | M29: =0.94*1000 -> 940 | N29: 440 | O29: 520 | P29: prEN 338: 2002
B30: 26 | C30: C50 | D30: 50 | E30: 30 | F30: 0.6 | G30: 29 | H30: 3.2 | I30: 3.8 | J30: =16*1000 -> 16000 | K30: =10.7*1000 -> 10700 | L30: =0.53*1000 -> 530 | M30: =1*1000 -> 1000 | N30: 460 | O30: 550 | P30: prEN 338: 2002
B31: 27 | C31: D24 | D31: 24 | E31: 14 | F31: 0.6 | G31: 21 | H31: 7.8 | I31: 4 | J31: 10000 | K31: 8500 | L31: =0.67*1000 -> 670 | M31: =0.62*1000 -> 620 | N31: 485 | O31: 580
B32: 28 | C32: D30 | D32: 30 | E32: 18 | F32: 0.6 | G32: 23 | H32: 8 | I32: 4 | J32: 11000 | K32: 9200 | L32: 730 | M32: 690 | N32: 530 | O32: -
B33: 5 | D33: [N/mmq] | E33: [N/mmq] | F33: [N/mmq] | G33: [N/mmq] | H33: [N/mmq] | I33: [N/mmq] | J33: [N/mmq] | K33: [N/mmq] | L33: [N/mmq] | M33: [N/mmq] | N33: [kg/mc] | O33: [kg/mc]
D34: fm,g,k | E34: ft,0,g,k | F34: ft,90,g,k | G34: fc,0,g,k | H34: fc,90,g,k | I34: fv,g,k | J34: E0,g,mean | K34: E0,g,05 | L34: E90,g,mean | M34: Gg,mean | N34: rg,k | O34: rm
C35: Resistenze legno di confiere e di pioppo (prEN 338: 2002)
D40: [N/mmq] | E40: [N/mmq] | F40: [N/mmq] | G40: [N/mmq] | H40: [kN/mc] | I40: [-] | J40: [-] | K40: [-]
B41: CONT | D41: fc,k | E41: Rc,k | F41: ft,k | G41: Ecls | I41: h1 | J41: h2 | K41: hE | O41: CONT | Q41: rete | R41: mm2/m | S41: Passo tondi | T41: Area tondo
B42: 1 | C42: C20/25 | D42: 20 | E42: 25 | F42: =0.7*(0.3*D42^(2/3)) -> 1.547293229 | G42: =22*(0.083*E42+0.8)^0.3*1000 -> 30200.49321 | H42: 25 | I42: - | J42: - | K42: - | O42: 1 | P42: 6 mm/10x10 | Q42: Æ6/10x10 | R42: =((100/10)*PI()*(0.6^2)/4)*100 -> 282.7433388 | S42: 100 | T42: =PI()*6^2/4 -> 28.27433388
B43: =B42+1 -> 2 | C43: C25/30 | D43: 25 | E43: 30 | F43: 1.795474744 | G43: 31447.16144 | H43: 25 | I43: - | J43: - | K43: - | O43: 2 | P43: 6 mm/15x15 | Q43: Æ6/15x15 | R43: =((100/15)*PI()*(0.6^2)/4)*100 -> 188.4955592 | S43: 150 | T43: =T42 -> 28.27433388
B44: =B43+1 -> 3 | C44: C28/35 | D44: 28 | E44: 35 | F44: 1.936383243 | G44: 32588.10782 | H44: 25 | I44: - | J44: - | K44: - | O44: 3 | P44: 6 mm/20x20 | Q44: Æ6/20x20 | R44: =(100/20)*PI()*(0.6^2)/4*100 -> 141.3716694 | S44: 200 | T44: =T43 -> 28.27433388
B45: 4 | C45: C30/37 | D45: 30 | E45: 37 | F45: 2.027527708 | G45: 33019.43458 | H45: 25 | I45: - | J45: - | K45: - | O45: 4 | P45: 8 mm/10x10 | Q45: Æ8/10x10 | R45: =(100/10)*PI()*(0.8^2)/4*100 -> 502.6548246 | S45: 100 | T45: =PI()*8^2/4 -> 50.26548246
B46: 5 | C46: C32/40 | D46: 32 | E46: 40 | F46: 2.116667364 | G46: 33642.77768 | H46: 25 | I46: - | J46: - | K46: - | O46: 5 | P46: 8 mm/15x15 | Q46: Æ8/15x15 | R46: =(100/15)*PI()*(0.8^2)/4*100 -> 335.1032164 | S46: 150 | T46: =T45 -> 50.26548246
B47: 6 | C47: C35/40 | D47: 35 | E47: 40 | F47: 2.246973709 | G47: 33642.77768 | H47: 25 | I47: - | J47: - | K47: - | O47: 6 | P47: 8 mm/20x20 | Q47: Æ8/20x20 | R47: =(100/20)*PI()*(0.8^2)/4*100 -> 251.3274123 | S47: 200 | T47: =T46 -> 50.26548246
B48: 7 | C48: LC25/28 | D48: 25 | E48: 28 | F48: =0.7*(I48*0.3*D48^(2/3)) -> 1.489427913 | G48: =22000*(D48/10)^0.3*K48 -> 14842.9573 | H48: 15.75 | I48: =0.4+0.6*H48*100/2200 -> 0.8295454545 | J48: 1 | K48: =(H48*100/2200)^2 -> 0.5125258264 | O48: 3
B49: 8 | C49: Leca CLS 1400 - LC 20/22 | D49: 20 | E49: 22 | F49: =0.7*(I49*0.3*D49^(2/3)) -> 1.273000339 | G49: 15000 | H49: 15.5 | I49: =0.4+0.6*H49*100/2200 -> 0.8227272727 | J49: 1 | K49: =(H49*100/2200)^2 -> 0.4963842975
B50: 9 | C50: Leca CLS 1600 - LC 31.5/35 | D50: 31.5 | E50: 35 | F50: =0.7*(I50*0.3*D50^(2/3)) -> 1.837501175 | G50: 20000 | H50: 17.5 | I50: =0.4+0.6*H50*100/2200 -> 0.8772727273 | J50: 1 | K50: =(H50*100/2200)^2 -> 0.6327479339
B51: 10 | C51: Leca CLS 1800 - LC 40.5/45 | D51: 40.5 | E51: 45 | F51: =0.7*(I51*0.3*D51^(2/3)) -> 2.307741485 | G51: 25000 | H51: 19.5 | I51: =0.4+0.6*H51*100/2200 -> 0.9318181818 | J51: 1 | K51: =(H51*100/2200)^2 -> 0.7856404959
B52: 2
D56: mm | E56: mm | F56: mm | G56: N/mm | H56: mm | I56: mm | J56: mm | K56: mm | L56: mm | M56: mm | N56: mm | O56: mm | P56: mm | Q56: Nmm | R56: mm | S56: N/mm2 | T56: kN
B57: CONT | D57: fi | E57: Ltot | F57: Lfilettata | G57: Kser | H57: Lsp | I57: toll | J57: P | K57: toll | L57: di | M57: toll | N57: Lm | O57: def | P57: Lef | Q57: Myk | R57: ds | S57: fax,k,90 | T57: ftens,k
B58: 1 | C58: T-CON 8.0x155 | D58: 8 | E58: 158.85 | F58: 100 | G58: 7700 | H58: 8.2 | I58: 2.1 | J58: 5.6 | K58: 0.56 | L58: 5.3 | M58: 0.26 | N58: =SUM($H$58:$K$58) -> 16.46 | O58: =1.1*$L$58 -> 5.83 | P58: 100 | Q58: 22600 | R58: 5.9 | S58: 10.7 | T58: 22.7
B59: 2 | C59: T-CON 8.0x205 | D59: 8 | E59: 208.85 | F59: 130 | G59: 9000 | H59: 8.2 | I59: 2.1 | J59: 5.6 | K59: 0.56 | L59: 5.3 | M59: 0.26 | N59: =SUM($H$58:$K$58) -> 16.46 | O59: =1.1*$L$58 -> 5.83 | P59: 100 | Q59: 22600 | R59: 5.9 | S59: 10.7 | T59: 22.7
B60: 2
C62: Densità legname per il tavolato
D63: [kg/mc] | E63: [kg/mc] | F63: [mm]
B64: CONT | D64: rg,k | E64: rm | F64: sp
B65: 1 | C65: Legno di Conifera C16 | D65: 550
B66: =B65+1 -> 2 | C66: Legno di Conifera C24 | D66: 550
B67: =B66+1 -> 3 | C67: Legno di Latifoglia D35 | D67: 550
B68: 4 | C68: Legno di Latifoglia D30 | D68: 550
B69: 5 | C69: Legno di Latifoglia D24 | D69: 550
B70: 6 | C70: Pannello OSB | D70: 550
B71: 7 | C71: Pannello fibrogesso A1 - sp. 10 mm | D71: 1150 | F71: 10
B72: 8 | C72: Pannello fibrogesso A1 - sp. 12,5 mm | D72: 1200 | F72: 12.5
B73: 9 | C73: Pannello fibrogesso A1 - sp. 15 mm | D73: 1200 | F73: 15
B74: 10 | C74: Pannello fibrogesso A1 - sp. 18 mm | D74: 1166.666667 | F74: 18
B75: 11 | C75: Tavella in laterizio sp. 3,5 cm | F75: 35
B76: 12 | C76: Tavella in laterizio sp. 5 cm | F76: 50
B77: 13 | C77: Pianella in laterizio sp. 4,0 cm | D77: 1800 | F77: 40
B78: 14 | C78: Pianella in laterizio sp. 3,0 cm | D78: 1800 | F78: 30
B79: 15 | C79: Pianella in laterizio sp. 2,6 cm | D79: 1800 | F79: 26
B80: 16 | C80: Pianella in laterizio sp. 1,6 cm | D80: 1800 | F80: 16
B81: 2

Sheet Prescrizioni (hidden)
B1: Normative di riferimento
B2: CONT | D2: Lamellare | E2: Massiccio | F2: Unioni
B3: 1 | C3: D.M. 17.01.2018 - Colonna "A" | D3: 1.45 | E3: 1.5 | F3: 1.5
B4: 2 | C4: D.M. 17.01.2018 - Colonna "B" | D4: 1.35 | E4: 1.45 | F4: 1.4
B5: 3 | C5: D.M. 14.01.2008 | D5: 1.45 | E5: 1.5 | F5: 1.5
B6: 4 | C6: UNI EN 1995-1-1:2014 | D6: 1.25 | E6: 1.3 | F6: 1.3
B7: 1
B10: LIMITI PER SOLAI DI COPERTURA | G10: (riferiti per luce L in pianta)
B11: limite freccia istantanea sui (soli) carichi variabili | G11: qk: | H11: u2,ist < L / | I11: 300
B12: limite freccia finale sui (soli) carichi variabili | G12: qk: | H12: u2,fin < L / | I12: 200
B13: limite freccia netta (finale) su tutti i carichi: | G13: gk e qk: | H13: unet,fin < L / | I13: 200
B16: LIMITI PER SOLAI di interpiano (consigliati) | G16: (riferiti per luce L in pianta)
B17: limite freccia istantanea sui (soli) carichi variabili | G17: qk: | H17: u2,ist < L / | I17: 400
B18: limite freccia finale sui (soli) carichi variabili | G18: qk: | H18: u2,fin < L / | I18: 500
B19: limite freccia netta (finale) su tutti i carichi: | G19: gk e qk: | H19: unet,fin < L / | I19: 500
B23: CONT | C23: Azione | D23: Q | E23: y0,j | F23: y1,j | G23: y2,j
B24: 1 | C24: Cat. A: Amb. ad uso residenziale | D24: 2 | E24: 0.7 | F24: 0.5 | G24: 0.3
B25: 2 | C25: Cat. B: Uffici | D25: 2 | E25: 0.7 | F25: 0.5 | G25: 0.3
B26: 3 | C26: Cat. C: Amb. suscettibili di affollamento | D26: 4 | E26: 0.7 | F26: 0.7 | G26: 0.6
B27: 4 | C27: Cat. D: Amb. ad uso commerciale | D27: 5 | E27: 0.7 | F27: 0.7 | G27: 0.6
B28: 5 | C28: Cat. E: Biblioteche, archivi, ... | D28: 6 | E28: 1 | F28: 0.9 | G28: 0.8
B29: 6 | C29: Neve (a quota < 1000 m) | D29: 1.2 | E29: 0.5 | F29: 0.2 | G29: 0
B30: 7 | C30: Neve (a quota > 1000 m) | D30: 1.2 | E30: 0.7 | F30: 0.5 | G30: 0.2
B31: 8 | C31: Coperture | D31: 0.5 | E31: 0 | F31: 0 | G31: 0
B32: 1
B36: Valori di "kdef" per i prodotti strutturali a base di legno (EN 1995-1-1/D.M.14.01.2008)
B39: Materiale | C39: rif. | D39: CONT | E39: Classe servizio | F39: kdef
B40: LM | C40: EN 14081-1 | D40: 1 | E40: 1 | F40: 0.6
B41: LL | D41: 2 | E41: 2 | F41: 0.8
D42: 3 | E42: 3 | F42: 2
C43: valore attuale | D43: 1 | E43: <-- classe serv.
B46: Valori di "kmod" per i prodotti strutturali a base di legno (EN 1995-1-1/D.M.14.01.2008)
B48: Materiale | C48: rif. | D48: CONT | E48: Classe servizio | F48: permanente | G48: Lunga | H48: Media | I48: Breve | J48: Istantaneo
B49: LM | C49: EN 14081-1 | D49: 1 | E49: 1 | F49: 0.6 | G49: 0.7 | H49: 0.8 | I49: 0.9 | J49: 1.1
B50: LL | D50: 2 | E50: 2 | F50: 0.6 | G50: 0.7 | H50: 0.8 | I50: 0.9 | J50: 1.1
D51: 3 | E51: 3 | F51: 0.5 | G51: 0.55 | H51: 0.65 | I51: 0.7 | J51: 0.9
C52: valore attuale | D52: =D43 -> 1 | E52: <-- classe serv.
D54: CONT
D55: 1 | E55: Permanente | F55: =VLOOKUP($D$52,$D$49:$J$51,3) -> 0.6
D56: 2 | E56: Lunga | F56: =VLOOKUP($D$52,$D$49:$J$51,4) -> 0.7
D57: 3 | E57: Media | F57: =VLOOKUP($D$52,$D$49:$J$51,5) -> 0.8
D58: 4 | E58: Breve | F58: =VLOOKUP($D$52,$D$49:$J$51,6) -> 0.9
D59: 5 | E59: Istantaneo | F59: =VLOOKUP($D$52,$D$49:$J$51,7) -> 1.1
D60: 3
C63: ANGOLI | F63: AMMORSAMENTO | J63: Valore minimo passo minimo | M63: 100 | N63: mm
B64: CONT | E64: CONT
B65: 1 | C65: 45 | E65: 1 | F65: 0
B66: 2 | C66: 90 | E66: 2 | F66: =F65+1 -> 1
B67: 1 | E67: =E66+1 -> 3 | F67: =F66+1 -> 2
E68: =E67+1 -> 4 | F68: 3
E69: 5 | F69: 4
E70: 6 | F70: 5
E71: 7 | F71: 6
E72: 8 | F72: 7
E73: 9 | F73: 8
E74: 10 | F74: 9
E75: 11 | F75: 10
E76: 12 | F76: =IF(B67=2,"-",11) -> 11
E77: 13 | F77: =IF(B67=2,"-",12) -> 12
E78: 14 | F78: =IF(B67=2,"-",13) -> 13
E79: 15 | F79: =IF(B67=2,"-",14) -> 14
E80: 15
B83: Valori di pendenza, angoli e moltiplicatori di falda
C84: pendenza | D84: angolo | E84: angolo | F84: moltiplicatore
B85: CONT | C85: % | D85: ° | E85: rad | F85: - | L85: CONT | M85: TIPO G1
B86: 1 | C86: 0 | D86: =DEGREES(ATAN(C86/100)) -> 0 | E86: =RADIANS(D86) -> 0 | F86: =(1^2+(C86/100)^2)^0.5 -> 1 | L86: 1 | M86: AUTOMATICO
B87: =B86+1 -> 2 | C87: =B86 -> 1 | D87: 0.5729386977 | E87: =RADIANS(D87) -> 0.009999666687 | F87: 1.000049999 | L87: 2 | M87: VALORE UTENTE
B88: =B87+1 -> 3 | C88: 2 | D88: 1.145762838 | E88: 0.01999733397 | F88: 1.00019998 | L88: 1
B89: 4 | C89: 3 | D89: 1.718358002 | E89: 0.02999100486 | F89: 1.000449899
B90: 5 | C90: 4 | D90: 2.290610043 | E90: 0.03997868712 | F90: 1.00079968
B91: 6 | C91: 5 | D91: 2.862405226 | E91: 0.04995839572 | F91: 1.00124922
B92: 7 | C92: 6 | D92: 3.433630362 | E92: 0.05992815512 | F92: 1.001798383
B93: 8 | C93: 7 | D93: 4.004172941 | E93: 0.06988600163 | F93: 1.002447006
B94: 9 | C94: 8 | D94: 4.57392126 | E94: 0.07982998571 | F94: 1.003194896
B95: 10 | C95: 9 | D95: 5.142764558 | E95: 0.08975817419 | F95: 1.004041832
B96: 11 | C96: 10 | D96: 5.710593137 | E96: 0.09966865249 | F96: 1.004987562
B97: 12 | C97: 11 | D97: 6.27729849 | E97: 0.1095595268 | F97: 1.006031809
B98: 13 | C98: 12 | D98: 6.842773413 | E98: 0.119428926 | F98: 1.007174265
B99: 14 | C99: 13 | D99: 7.406912128 | E99: 0.129275004 | F99: 1.008414597
B100: 15 | C100: 14 | D100: 7.969610394 | E100: 0.1390959415 | F100: 1.009752445
B101: 16 | C101: 15 | D101: 8.53076561 | E101: 0.1488899476 | F101: 1.011187421
B102: 17 | C102: 16 | D102: 9.090276921 | E102: 0.1586552622 | F102: 1.012719112
B103: 18 | C103: 17 | D103: 9.648045316 | E103: 0.1683901571 | F103: 1.014347081
B104: 19 | C104: 18 | D104: 10.20397372 | E104: 0.1780929382 | F104: 1.016070864
B105: 20 | C105: 19 | D105: 10.75796709 | E105: 0.1877619465 | F105: 1.017889974
B106: 21 | C106: 20 | D106: 11.30993247 | E106: 0.1973955598 | F106: 1.019803903
B107: 22 | C107: 21 | D107: 11.85977912 | E107: 0.2069921942 | F107: 1.021812116
B108: 23 | C108: 22 | D108: 12.40741853 | E108: 0.216550305 | F108: 1.023914059
B109: 24 | C109: 23 | D109: 12.95276451 | E109: 0.226068388 | F109: 1.026109156
B110: 25 | C110: 24 | D110: 13.49573328 | E110: 0.2355449807 | F110: 1.028396811
B111: 26 | C111: 25 | D111: 14.03624347 | E111: 0.2449786631 | F111: 1.030776406
B112: 27 | C112: 26 | D112: 14.5742162 | E112: 0.2543680586 | F112: 1.033247308
B113: 28 | C113: 27 | D113: 15.10957512 | E113: 0.2637118345 | F113: 1.035808863
B114: 29 | C114: 28 | D114: 15.64224646 | E114: 0.2730087031 | F114: 1.038460399
B115: 30 | C115: 29 | D115: 16.17215902 | E115: 0.282257422 | F115: 1.041201229
B116: 31 | C116: 30 | D116: =DEGREES(ATAN(C116/100)) -> 16.69924423 | E116: 0.2914567945 | F116: 1.044030651
B117: 32 | C117: 31 | D117: =DEGREES(ATAN(C117/100)) -> 17.22343619 | E117: 0.30060567 | F117: 1.046947945
B118: 33 | C118: 32 | D118: 17.74467163 | E118: 0.3097029445 | F118: =(1^2+(C118/100)^2)^0.5 -> 1.04995238
B119: 34 | C119: =B118 -> 33 | D119: 18.26288994 | E119: 0.3187475604 | F119: 1.053043209
B120: 35 | C120: 34 | D120: 18.77803322 | E120: 0.3277385068 | F120: 1.056219674
B121: 36 | C121: 35 | D121: 19.29004622 | E121: 0.3366748194 | F121: 1.059481005
B122: 37 | C122: 36 | D122: 19.79887635 | E122: 0.3455555806 | F122: 1.06282642
B123: 38 | C123: 37 | D123: 20.30447371 | E123: 0.3543799191 | F123: 1.066255129
B124: 39 | C124: 38 | D124: 20.80679101 | E124: 0.3631470099 | F124: 1.06976633
B125: 40 | C125: 39 | D125: 21.30578362 | E125: 0.3718560738 | F125: 1.073359213
B126: 41 | C126: 40 | D126: 21.80140949 | E126: 0.3805063771 | F126: 1.077032961
B127: 42 | C127: 41 | D127: 22.29362916 | E127: 0.3890972311 | F127: 1.08078675
B128: 43 | C128: 42 | D128: 22.78240573 | E128: 0.3976279915 | F128: 1.084619749
B129: 44 | C129: 43 | D129: 23.26770481 | E129: 0.4060980583 | F129: 1.08853112
B130: 45 | C130: 44 | D130: 23.74949449 | E130: 0.4145068746 | F130: 1.092520023
B131: 46 | C131: 45 | D131: 24.22774532 | E131: 0.4228539261 | F131: 1.09658561
B132: 47 | C132: 46 | D132: 24.70243023 | E132: 0.4311387407 | F132: 1.100727032
B133: 48 | C133: 47 | D133: 25.17352452 | E133: 0.4393608873 | F133: 1.104943437
B134: 49 | C134: 48 | D134: 25.64100582 | E134: 0.4475199752 | F134: 1.10923397
B135: 50 | C135: 49 | D135: 26.10485401 | E135: 0.4556156532 | F135: 1.113597773
B136: 51 | C136: 50 | D136: 26.56505118 | E136: 0.463647609 | F136: 1.118033989
B137: 52 | C137: 51 | D137: 27.02158159 | E137: 0.4716155679 | F137: 1.122541759
B138: 53 | C138: 52 | D138: 27.47443163 | E138: 0.479519292 | F138: 1.127120224
B139: 54 | C139: 53 | D139: 27.92358972 | E139: 0.4873585795 | F139: 1.131768528
B140: 55 | C140: 54 | D140: 28.36904629 | E140: 0.4951332635 | F140: 1.136485812
B141: 56 | C141: 55 | D141: 28.81079374 | E141: 0.5028432109 | F141: 1.141271221
B142: 57 | C142: 56 | D142: 29.24882634 | E142: 0.5104883219 | F142: 1.146123903
B143: 58 | C143: 57 | D143: 29.68314018 | E143: 0.5180685285 | F143: 1.151043005
B144: 59 | C144: 58 | D144: 30.11373315 | E144: 0.5255837936 | F144: 1.156027681
B145: 60 | C145: 59 | D145: 30.54060485 | E145: 0.5330341102 | F145: 1.161077086
B146: 61 | C146: 60 | D146: 30.96375653 | E146: 0.5404195003 | F146: 1.166190379
B147: 62 | C147: 61 | D147: 31.38319106 | E147: 0.5477400137 | F147: 1.171366723
B148: 63 | C148: 62 | D148: 31.79891282 | E148: 0.5549957273 | F148: 1.176605286
B149: 64 | C149: 63 | D149: 32.21092772 | E149: 0.5621867439 | F149: 1.181905242
B150: 65 | C150: 64 | D150: 32.61924307 | E150: 0.5693131911 | F150: =(1^2+(C150/100)^2)^0.5 -> 1.187265766
B151: 66 | C151: =B150 -> 65 | D151: 33.02386756 | E151: =RADIANS(D151) -> 0.5763752206 | F151: 1.192686044
B152: =B151+1 -> 67 | C152: 66 | D152: 33.42481118 | E152: 0.583373007 | F152: 1.198165264
B153: 68 | C153: 67 | D153: 33.82208522 | E153: 0.5903067469 | F153: 1.203702621
B154: 69 | C154: 68 | D154: 34.21570213 | E154: 0.5971766581 | F154: 1.209297317
B155: 70 | C155: 69 | D155: 34.60567555 | E155: 0.6039829783 | F155: 1.214948559
B156: 71 | C156: 70 | D156: 34.9920202 | E156: 0.6107259644 | F156: 1.220655562
B157: 72 | C157: 71 | D157: 35.37475184 | E157: 0.6174058918 | F157: 1.226417547
B158: 73 | C158: 72 | D158: 35.75388725 | E158: 0.624023053 | F158: 1.232233744
B159: 74 | C159: 73 | D159: 36.12944414 | E159: 0.6305777572 | F159: 1.238103388
B160: 75 | C160: 74 | D160: 36.50144112 | E160: 0.6370703293 | F160: 1.244025723
B161: 76 | C161: 75 | D161: 36.86989765 | E161: 0.6435011088 | F161: 1.25
B162: 77 | C162: 76 | D162: 37.23483398 | E162: 0.6498704494 | F162: 1.256025477
B163: 78 | C163: 77 | D163: 37.59627115 | E163: 0.656178718 | F163: 1.262101422
B164: 79 | C164: 78 | D164: 37.95423088 | E164: 0.6624262938 | F164: 1.268227109
B165: 80 | C165: 79 | D165: 38.30873557 | E165: 0.6686135679 | F165: 1.27440182
B166: 81 | C166: 80 | D166: 38.65980825 | E166: 0.6747409422 | F166: 1.280624847
B167: 82 | C167: 81 | D167: 39.00747255 | E167: 0.6808088289 | F167: 1.286895489
B168: 83 | C168: 82 | D168: 39.35175263 | E168: 0.6868176498 | F168: 1.293213053
B169: 84 | C169: 83 | D169: 39.69267315 | E169: 0.6927678354 | F169: 1.299576854
B170: 85 | C170: 84 | D170: 40.03025927 | E170: 0.6986598247 | F170: 1.305986217
B171: 86 | C171: 85 | D171: 40.36453657 | E171: 0.7044940642 | F171: 1.312440475
B172: 87 | C172: 86 | D172: 40.69553104 | E172: 0.7102710075 | F172: 1.318938968
B173: 88 | C173: 87 | D173: 41.02326902 | E173: 0.7159911144 | F173: 1.325481045
B174: 89 | C174: 88 | D174: 41.34777722 | E174: 0.7216548509 | F174: 1.332066064
B175: 90 | C175: 89 | D175: 41.66908262 | E175: 0.727262688 | F175: 1.338693393
B176: 91 | C176: 90 | D176: 41.9872125 | E176: 0.7328151018 | F176: 1.345362405
B177: 92 | C177: 91 | D177: 42.30219437 | E177: 0.7383125725 | F177: 1.352072483
B178: 93 | C178: 92 | D178: 42.61405597 | E178: 0.7437555843 | F178: 1.35882302
B179: 94 | C179: 93 | D179: 42.92282523 | E179: 0.7491446246 | F179: 1.365613415
B180: 95 | C180: 94 | D180: 43.22853026 | E180: 0.7544801838 | F180: 1.372443077
B181: 96 | C181: 95 | D181: =DEGREES(ATAN(C181/100)) -> 43.53119929 | E181: 0.7597627549 | F181: 1.379311422
B182: 97 | C182: 96 | D182: 43.83086067 | E182: 0.7649928327 | F182: 1.386217876
B183: 98 | C183: 97 | D183: 44.12754288 | E183: 0.770170914 | F183: 1.393161871
B184: 99 | C184: 98 | D184: 44.42127443 | E184: 0.7752974968 | F184: 1.40014285
B185: 100 | C185: 99 | D185: 44.71208393 | E185: 0.7803730801 | F185: 1.407160261
B186: 101 | C186: 100 | D186: 45 | E186: 0.7853981634 | F186: 1.414213562
B187: 1

Sheet Foglio1 (hidden)
B4: Graficazione elementi | H4: n con pmin | I4: =Analisi!Q85 -> 9 | J4: -
B5: Elementi solaio | D5: Pos connettori | H5: n con pmax | I5: =Analisi!Q84 -> 8 | J5: -
B6: Trave | D6: Progressivo | E6: Pos [mm] | F6: Pos adim | H6: nsp pmin
B7: 0 | C7: 0 | D7: 1 | E7: =Analisi!E85 -> 116.25 | F7: =E7/Analisi!$E$17 -> 0.02380952381 | G7: 0.4 | H7: nsp pmax
B8: 1 | C8: 0 | D8: =IF(D7>=(Analisi!$E$83/Analisi!$E$46),"",D7+1) -> 2 | E8: =IF(D8="","",IF(D8<=$I$4,E7+$I$9,IF(D8=$I$4+1,E7+$I$12,IF(AND(D8>($I$4+1),D8<=($I$4+$I$5)),E7+$I$8,IF(D8=($I$4+$I$5+1),E7+$I$12,E7+$I$9))))) -> 246.25 | F8: =E8/Analisi!$E$17 -> 0.05043522785 | G8: =IF(D8="","",$G$7) -> 0.4 | H8: pmax | I8: =Analisi!E48 -> 330 | J8: mm
B9: 1 | C9: 0.4 | D9: =IF(D8>=(Analisi!$E$83/Analisi!$E$46),"",D8+1) -> 3 | E9: 376.25 | F9: =E9/Analisi!$E$17 -> 0.0770609319 | G9: =IF(D9="","",$G$7) -> 0.4 | H9: pmin | I9: =Analisi!E47 -> 130 | J9: mm
B10: 0 | C10: 0.4 | D10: =IF(D9>=(Analisi!$E$83/Analisi!$E$46),"",D9+1) -> 4 | E10: 506.25 | F10: =E10/Analisi!$E$17 -> 0.1036866359 | G10: 0.4 | H10: a3 | I10: =Analisi!E85 -> 116.25 | J10: mm
B11: 0 | C11: 0 | D11: =IF(D10>=(Analisi!$E$83/Analisi!$E$46),"",D10+1) -> 5 | E11: 636.25 | F11: =E11/Analisi!$E$17 -> 0.13031234 | G11: 0.4 | H11: Ltotale | I11: =Analisi!E17 -> 4882.5 | J11: mm
B12: Soletta | D12: =IF(D11>=(Analisi!$E$83/Analisi!$E$46),"",D11+1) -> 6 | E12: 766.25 | F12: =E12/Analisi!$E$17 -> 0.156938044 | G12: 0.4 | H12: scarto | I12: =I11/2-I10-(I4-1)*I9-(I5-1)*I8/2 -> 130 | J12: mm
B13: 0 | C13: 0.4 | D13: =IF(D12>=(Analisi!$E$83/Analisi!$E$46),"",D12+1) -> 7 | E13: 896.25 | F13: =E13/Analisi!$E$17 -> 0.1835637481 | G13: 0.4
B14: 1 | C14: 0.4 | D14: =IF(D13>=(Analisi!$E$83/Analisi!$E$46),"",D13+1) -> 8 | E14: 1026.25 | F14: =E14/Analisi!$E$17 -> 0.2101894521 | G14: 0.4
B15: 1 | C15: 0.6 | D15: =IF(D14>=(Analisi!$E$83/Analisi!$E$46),"",D14+1) -> 9 | E15: 1156.25 | F15: =E15/Analisi!$E$17 -> 0.2368151562 | G15: 0.4
B16: 0 | C16: 0.6 | D16: =IF(D15>=(Analisi!$E$83/Analisi!$E$46),"",D15+1) -> 10 | E16: 1286.25 | F16: =E16/Analisi!$E$17 -> 0.2634408602 | G16: 0.4
B17: 0 | C17: 0.41 | D17: =IF(D16>=(Analisi!$E$83/Analisi!$E$46),"",D16+1) -> 11 | E17: 1616.25 | F17: =E17/Analisi!$E$17 -> 0.3310291859 | G17: 0.4
B18: Appoggio sx | D18: =IF(D17>=(Analisi!$E$83/Analisi!$E$46),"",D17+1) -> 12 | E18: 1946.25 | F18: =E18/Analisi!$E$17 -> 0.3986175115 | G18: 0.4
B19: 0 | C19: -0.01 | D19: =IF(D18>=(Analisi!$E$83/Analisi!$E$46),"",D18+1) -> 13 | E19: 2276.25 | F19: =E19/Analisi!$E$17 -> 0.4662058372 | G19: 0.4
B20: =Analisi!E14/Analisi!E17 ->  | C20: -0.01 | D20: =IF(D19>=(Analisi!$E$83/Analisi!$E$46),"",D19+1) -> 14 | E20: 2606.25 | F20: =E20/Analisi!$E$17 -> 0.5337941628 | G20: 0.4
B21: =B20 ->  | C21: -0.15 | D21: =IF(D20>=(Analisi!$E$83/Analisi!$E$46),"",D20+1) -> 15 | E21: 2936.25 | F21: =E21/Analisi!$E$17 -> 0.6013824885 | G21: 0.4
B22: =B21-0.005 ->  | C22: -0.15 | D22: =IF(D21>=(Analisi!$E$83/Analisi!$E$46),"",D21+1) -> 16 | E22: 3266.25 | F22: =E22/Analisi!$E$17 -> 0.6689708141 | G22: 0.4
B23: =B22 ->  | C23: -0.03 | D23: =IF(D22>=(Analisi!$E$83/Analisi!$E$46),"",D22+1) -> 17 | E23: 3596.25 | F23: =E23/Analisi!$E$17 -> 0.7365591398 | G23: 0.4
B24: 0 | C24: -0.03 | D24: =IF(D23>=(Analisi!$E$83/Analisi!$E$46),"",D23+1) -> 18 | E24: 3726.25 | F24: =E24/Analisi!$E$17 -> 0.7631848438 | G24: 0.4
B25: 0 | C25: -0.01 | D25: =IF(D24>=(Analisi!$E$83/Analisi!$E$46),"",D24+1) -> 19 | E25: 3856.25 | F25: =E25/Analisi!$E$17 -> 0.7898105479 | G25: 0.4
B26: Appoggio dx | D26: =IF(D25>=(Analisi!$E$83/Analisi!$E$46),"",D25+1) -> 20 | E26: 3986.25 | F26: =E26/Analisi!$E$17 -> 0.8164362519 | G26: 0.4
B27: =1+ABS(B19) -> 1 | C27: -0.01 | D27: =IF(D26>=(Analisi!$E$83/Analisi!$E$46),"",D26+1) -> 21 | E27: =IF(D27="","",IF(D27<=$I$4,E26+$I$9,IF(D27=$I$4+1,E26+$I$12,IF(AND(D27>($I$4+1),D27<=($I$4+$I$5)),E26+$I$8,IF(D27=($I$4+$I$5+1),E26+$I$12,E26+$I$9))))) -> 4116.25 | F27: =E27/Analisi!$E$17 -> 0.843061956 | G27: 0.4
B28: =1-B20 ->  | C28: -0.01 | D28: =IF(D27>=(Analisi!$E$83/Analisi!$E$46),"",D27+1) -> 22 | E28: 4246.25 | F28: =E28/Analisi!$E$17 -> 0.86968766 | G28: 0.4
B29: =B28 ->  | C29: -0.15 | D29: =IF(D28>=(Analisi!$E$83/Analisi!$E$46),"",D28+1) -> 23 | E29: 4376.25 | F29: =E29/Analisi!$E$17 -> 0.8963133641 | G29: 0.4
B30: =1-B22 ->  | C30: -0.15 | D30: =IF(D29>=(Analisi!$E$83/Analisi!$E$46),"",D29+1) -> 24 | E30: 4506.25 | F30: =E30/Analisi!$E$17 -> 0.9229390681 | G30: 0.4
B31: =B30 ->  | C31: -0.03 | D31: =IF(D30>=(Analisi!$E$83/Analisi!$E$46),"",D30+1) -> 25 | E31: 4636.25 | F31: =E31/Analisi!$E$17 -> 0.9495647721 | G31: 0.4
B32: =B27 -> 1 | C32: -0.03 | D32: =IF(D31>=(Analisi!$E$83/Analisi!$E$46),"",D31+1) -> 26 | E32: 4766.25 | F32: =E32/Analisi!$E$17 -> 0.9761904762 | G32: 0.4
B33: =B32 -> 1 | C33: -0.01 | D33: =IF(D32>=(Analisi!$E$83/Analisi!$E$46),"",D32+1) ->  | F33: =E33/Analisi!$E$17 -> 
B34: quarti trave | D34: =IF(D33>=(Analisi!$E$83/Analisi!$E$46),"",D33+1) ->  | F34: =E34/Analisi!$E$17 -> 
B35: =B20 ->  | C35: 0 | D35: =IF(D34>=(Analisi!$E$83/Analisi!$E$46),"",D34+1) ->  | F35: =E35/Analisi!$E$17 -> 
B36: =B20 ->  | C36: =C15 -> 0.6 | D36: =IF(D35>=(Analisi!$E$83/Analisi!$E$46),"",D35+1) ->  | F36: =E36/Analisi!$E$17 -> 
B37: 0.25 | C37: 0 | D37: =IF(D36>=(Analisi!$E$83/Analisi!$E$46),"",D36+1) ->  | F37: =E37/Analisi!$E$17 -> 
B38: 0.25 | C38: =C36 -> 0.6 | D38: =IF(D37>=(Analisi!$E$83/Analisi!$E$46),"",D37+1) ->  | F38: =E38/Analisi!$E$17 -> 
B39: 0.5 | C39: 0 | D39: =IF(D38>=(Analisi!$E$83/Analisi!$E$46),"",D38+1) ->  | F39: =E39/Analisi!$E$17 -> 
B40: 0.5 | C40: =C36 -> 0.6 | D40: =IF(D39>=(Analisi!$E$83/Analisi!$E$46),"",D39+1) ->  | F40: =E40/Analisi!$E$17 -> 
B41: 0.75 | C41: 0 | D41: =IF(D40>=(Analisi!$E$83/Analisi!$E$46),"",D40+1) ->  | F41: =E41/Analisi!$E$17 -> 
B42: 0.75 | C42: =C36 -> 0.6 | D42: =IF(D41>=(Analisi!$E$83/Analisi!$E$46),"",D41+1) ->  | F42: =E42/Analisi!$E$17 -> 
B43: =1-B35 ->  | C43: 0 | D43: =IF(D42>=(Analisi!$E$83/Analisi!$E$46),"",D42+1) ->  | F43: =E43/Analisi!$E$17 -> 
B44: =B43 ->  | C44: =C42 -> 0.6 | D44: =IF(D43>=(Analisi!$E$83/Analisi!$E$46),"",D43+1) ->  | F44: =E44/Analisi!$E$17 -> 
D45: =IF(D44>=(Analisi!$E$83/Analisi!$E$46),"",D44+1) ->  | E45: =IF(D45="","",IF(D45<=$I$4,E44+$I$9,IF(D45=$I$4+1,E44+$I$12,IF(AND(D45>($I$4+1),D45<=($I$4+$I$5)),E44+$I$8,IF(D45=($I$4+$I$5+1),E44+$I$12,E44+$I$9))))) ->  | F45: =E45/Analisi!$E$17 ->  | G45: =IF(D45="","",$G$7) -> 
D46: =IF(D45>=(Analisi!$E$83/Analisi!$E$46),"",D45+1) ->  | F46: =E46/Analisi!$E$17 -> 
D47: =IF(D46>=(Analisi!$E$83/Analisi!$E$46),"",D46+1) ->  | F47: =E47/Analisi!$E$17 -> 
D48: =IF(D47>=(Analisi!$E$83/Analisi!$E$46),"",D47+1) ->  | F48: =E48/Analisi!$E$17 -> 
D49: =IF(D48>=(Analisi!$E$83/Analisi!$E$46),"",D48+1) ->  | F49: =E49/Analisi!$E$17 -> 
D50: =IF(D49>=(Analisi!$E$83/Analisi!$E$46),"",D49+1) ->  | F50: =E50/Analisi!$E$17 -> 
D51: =IF(D50>=(Analisi!$E$83/Analisi!$E$46),"",D50+1) ->  | F51: =E51/Analisi!$E$17 -> 
D52: =IF(D51>=(Analisi!$E$83/Analisi!$E$46),"",D51+1) ->  | F52: =E52/Analisi!$E$17 -> 
D53: =IF(D52>=(Analisi!$E$83/Analisi!$E$46),"",D52+1) ->  | F53: =E53/Analisi!$E$17 -> 
D54: =IF(D53>=(Analisi!$E$83/Analisi!$E$46),"",D53+1) ->  | F54: =E54/Analisi!$E$17 -> 
D55: =IF(D54>=(Analisi!$E$83/Analisi!$E$46),"",D54+1) ->  | F55: =E55/Analisi!$E$17 -> 
D56: =IF(D55>=(Analisi!$E$83/Analisi!$E$46),"",D55+1) ->  | F56: =E56/Analisi!$E$17 -> 
D57: =IF(D56>=(Analisi!$E$83/Analisi!$E$46),"",D56+1) ->  | F57: =E57/Analisi!$E$17 -> 
D58: =IF(D57>=(Analisi!$E$83/Analisi!$E$46),"",D57+1) ->  | F58: =E58/Analisi!$E$17 -> 
